Workbook

Sheet Sheet2 (hidden)
A1: orelle pro | B1: 70w | C1: up to 4m | E1: Please select from list
A2: orelle pro | B2: 175w | C2: up to 11m | E2: LINELIGHT Stable white | G2: =CONCATENATE(E$2,"/",E7) -> LINELIGHT Stable white/EVG | H2: LINELIGHT Stable white/EVG/320W | I2: LINELIGHT DRIVER 1992A/320W EVG | J2: 21100298 | K2: =CONCATENATE(I2," - ",J2) -> LINELIGHT DRIVER 1992A/320W EVG - 21100298 | L2: LINELIGHT DRIVER 1992A/70W EVG | M2: 21100296
A3: orelle pro | B3: 350w | C3: up to 18m | E3: LINELIGHT Balanced white | G3: =CONCATENATE(E$2,"/",E8) -> LINELIGHT Stable white/LDO | H3: LINELIGHT Stable white/LDO/320W | I3: LINELIGHT DRIVER 1992A/320W LDO | J3: 21100301 | K3: =CONCATENATE(I3," - ",J3) -> LINELIGHT DRIVER 1992A/320W LDO - 21100301 | L3: LINELIGHT DRIVER 1992A/70W LDO | M3: 21100299
A4: orelle pro dynamic white | B4: 70w | C4: up to 1.8m | E4: LINELIGHT Stable white (HO) | G4: =CONCATENATE(E$3,"/",E8) -> LINELIGHT Balanced white/LDO | H4: LINELIGHT Balanced white/LDO/320W | I4: LINELIGHT DRIVER 1992A/BW/320W LDO | J4: 21100304 | K4: =CONCATENATE(I4," - ",J4) -> LINELIGHT DRIVER 1992A/BW/320W LDO - 21100304 | L4: LINELIGHT DRIVER 1992A/175W EVG | M4: 21100297
A5: orelle pro dynamic white | B5: 175w | C5: up to 4m | H5: LINELIGHT Stable White (HO)/EVG/320W | I5: LINELIGHT DRIVER 1992A/320W EVG | J5: 21100298 | K5: =CONCATENATE(I5," - ",J5) -> LINELIGHT DRIVER 1992A/320W EVG - 21100298 | L5: LINELIGHT DRIVER 1992A/175W LDO | M5: 21100300
A6: orelle pro dynamic white | B6: 350w | C6: up to 8m | E6: Choose dimming protocol | H6: LINELIGHT Stable White (HO)/LDO/320W | I6: LINELIGHT DRIVER 1992A/320W LDO | J6: 21100301 | K6: LINELIGHT DRIVER 1992A/320W LDO - 21100301 | L6: LINELIGHT DRIVER 1992A/320W EVG | M6: 21100298
A7: orelle pro+ | B7: 70w | C7: 1 | E7: EVG | H7: LINELIGHT Stable white/EVG/175W | I7: LINELIGHT DRIVER 1992A/175W EVG | J7: 21100297 | K7: LINELIGHT DRIVER 1992A/175W EVG - 21100297 | L7: LINELIGHT DRIVER 1992A/320W LDO | M7: 21100301
A8: orelle pro+ | B8: 175w | C8: up to 4m | E8: LDO | H8: LINELIGHT Stable white/LDO/175W | I8: LINELIGHT DRIVER 1992A/175W LDO | J8: 21100300 | K8: LINELIGHT DRIVER 1992A/175W LDO - 21100300 | L8: LINELIGHT DRIVER 1992A/BW/70W LDO | M8: 21100302
A9: orelle pro+ | B9: 350w | C9: 6 | H9: LINELIGHT Balanced white/LDO/175W | I9: LINELIGHT DRIVER 1992A/BW/175W LDO | J9: 21100303 | K9: LINELIGHT DRIVER 1992A/BW/175W LDO - 21100303 | L9: LINELIGHT DRIVER 1992A/BW/320W LDO | M9: 21100304
H10: LINELIGHT Stable White (HO)/EVG/175W | I10: LINELIGHT DRIVER 1992A/175W EVG | J10: 21100297 | K10: LINELIGHT DRIVER 1992A/175W EVG - 21100297 | L10: LINELIGHT DRIVER 1992A/BW/175W LDO | M10: 21100303
A11: Please select from list | B11: Please select from list | C11: Please select from list | D11: Please select from list | E11: Please select from list | H11: LINELIGHT Stable White (HO)/LDO/175W | I11: LINELIGHT DRIVER 1992A/175W LDO | J11: 21100300 | K11: LINELIGHT DRIVER 1992A/175W LDO - 21100300
A12: 1810mm | B12: 827 | C12: Diffuse | D12: Cowl | H12: LINELIGHT Stable white/EVG/70W | I12: LINELIGHT DRIVER 1992A/70W EVG | J12: 21100296 | K12: LINELIGHT DRIVER 1992A/70W EVG - 21100296
A13: 910mm | B13: 830 | D13: No Cowl | H13: LINELIGHT Stable white/LDO/70W | I13: LINELIGHT DRIVER 1992A/70W LDO | J13: 21100299 | K13: LINELIGHT DRIVER 1992A/70W LDO - 21100299
A14: 610mm | B14: 840 | H14: LINELIGHT Balanced white/LDO/70W | I14: LINELIGHT DRIVER 1992A/BW/70W LDO | J14: 21100302 | K14: =CONCATENATE(I14," - ",J14) -> LINELIGHT DRIVER 1992A/BW/70W LDO - 21100302
A15: 310mm | H15: LINELIGHT Stable White (HO)/EVG/70W | I15: LINELIGHT DRIVER 1992A/70W EVG | J15: 21100296 | K15: LINELIGHT DRIVER 1992A/70W EVG - 21100296
A16: 160mm | H16: LINELIGHT Stable White (HO)/LDO/70W | I16: LINELIGHT DRIVER 1992A/70W LDO | J16: 21100299 | K16: LINELIGHT DRIVER 1992A/70W LDO - 21100299
B20: Please select from list | D20: LINELIGHT Stable white | E20: orellepro | F20: dorellepro
B21: 827-65 | D21: LINELIGHT Balanced white | E21: orelleprodw | F21: dorelleprodw
D22: LINELIGHT Stable white (HO) | E22: orelleproplus | F22: dorelleproplus
B23: Please select from list
B24: 827 | D24: Choose dimming protocol
B25: 830 | D25: EVG
B26: 840 | D26: LDO
D29: Choose dimming protocol
D30: EVG
B31: Please select from list | D31: LDO
B32: 827
B33: 830
B34: 840 | D34: Choose dimming protocol
D35: LDO

Sheet Sheet3 (hidden)
A1: Zumtobel Product Code | B1: 1 | C1: 2 | D1: 3 | E1: 4 | F1: 5 | G1: 6 | H1: 7 | I1: 8 | J1: 9 | K1: 10 | L1: Zumtobel Product Code | M1: 12 | N1: Linelight | O1: SAP Code
A2: ORELLE PRO L01 180-827 AS FG CW 40 | B2: LINELIGHT | C2: LINELIGHT Stable white | D2: 160mm | E2: 180 | F2: 827 | G2: AS | H2: Diffuse | I2: Cowl | J2: 40 | K2: =CONCATENATE(C2,D2,F2,H2,I2) -> LINELIGHT Stable white160mm827DiffuseCowl | L2: ORELLE PRO L01 180-827 AS FG CW 40 | M2: =IFERROR(VLOOKUP(L2,Sheet4!B:C,2,0),"Contact acdc for SAP code") -> 21005393 | N2: LINELIGHT 180-827 L160 CW SR | O2: 21013730
A3: ORELLE PRO L01 180-827 AS FG 40 | B3: LINELIGHT | C3: LINELIGHT Stable white | D3: 160mm | E3: 180 | F3: 827 | G3: AS | H3: Diffuse | I3: No Cowl | J3: 40 | K3: =CONCATENATE(C3,D3,F3,H3,I3) -> LINELIGHT Stable white160mm827DiffuseNo Cowl | L3: ORELLE PRO L01 180-827 AS FG 40 | M3: =IFERROR(VLOOKUP(L3,Sheet4!B:C,2,0),"Contact acdc for SAP code") -> 21005394 | N3: LINELIGHT 180-827 L160 SR | O3: 21013731
A4: ORELLE PRO L01 180-830 AS FG CW 40 | B4: LINELIGHT | C4: LINELIGHT Stable white | D4: 160mm | E4: 180 | F4: 830 | G4: AS | H4: Diffuse | I4: Cowl | J4: 40 | K4: LINELIGHT Stable white160mm830DiffuseCowl | L4: ORELLE PRO L01 180-830 AS FG CW 40 | M4: =IFERROR(VLOOKUP(L4,Sheet4!B:C,2,0),"Contact acdc for SAP code") -> 21005395 | N4: LINELIGHT 180-830 L160 CW SR | O4: 21013700
A5: ORELLE PRO L01 180-830 AS FG 40 | B5: LINELIGHT | C5: LINELIGHT Stable white | D5: 160mm | E5: 180 | F5: 830 | G5: AS | H5: Diffuse | I5: No Cowl | J5: 40 | K5: LINELIGHT Stable white160mm830DiffuseNo Cowl | L5: ORELLE PRO L01 180-830 AS FG 40 | M5: =IFERROR(VLOOKUP(L5,Sheet4!B:C,2,0),"Contact acdc for SAP code") -> 21005396 | N5: LINELIGHT 180-830 L160 SR | O5: 21013701
A6: ORELLE PRO L01 180-842 AS FG CW 40 | B6: LINELIGHT | C6: LINELIGHT Stable white | D6: 160mm | E6: 180 | F6: 840 | G6: AS | H6: Diffuse | I6: Cowl | J6: 40 | K6: LINELIGHT Stable white160mm840DiffuseCowl | L6: ORELLE PRO L01 180-840 AS FG CW 40 | M6: =IFERROR(VLOOKUP(L6,Sheet4!B:C,2,0),"Contact acdc for SAP code") -> Contact acdc for SAP code | N6: LINELIGHT 180-840 L160 CW SR | O6: Create code in MyProduct VIVA
A7: ORELLE PRO L01 180-842 AS FG 40 | B7: LINELIGHT | C7: LINELIGHT Stable white | D7: 160mm | E7: 180 | F7: 840 | G7: AS | H7: Diffuse | I7: No Cowl | J7: 40 | K7: LINELIGHT Stable white160mm840DiffuseNo Cowl | L7: ORELLE PRO L01 180-840 AS FG 40 | M7: =IFERROR(VLOOKUP(L7,Sheet4!B:C,2,0),"Contact acdc for SAP code") -> Contact acdc for SAP code | N7: LINELIGHT 180-840 L160 SR | O7: Create code in MyProduct VIVA
A8: ORELLE PRO L03 400-827 AS FG CW 40 | B8: LINELIGHT | C8: LINELIGHT Stable white | D8: 310mm | E8: 400 | F8: 827 | G8: AS | H8: Diffuse | I8: Cowl | J8: 40 | K8: LINELIGHT Stable white310mm827DiffuseCowl | L8: ORELLE PRO L03 400-827 AS FG CW 40 | M8: =IFERROR(VLOOKUP(L8,Sheet4!B:C,2,0),"Contact acdc for SAP code") -> 21005399 | N8: LINELIGHT 400-827 L310 CW SR | O8: 21013732
A9: ORELLE PRO L03 400-827 AS FG 40 | B9: LINELIGHT | C9: LINELIGHT Stable white | D9: 310mm | E9: 400 | F9: 827 | G9: AS | H9: Diffuse | I9: No Cowl | J9: 40 | K9: LINELIGHT Stable white310mm827DiffuseNo Cowl | L9: ORELLE PRO L03 400-827 AS FG 40 | M9: =IFERROR(VLOOKUP(L9,Sheet4!B:C,2,0),"Contact acdc for SAP code") -> 21005400 | N9: LINELIGHT 400-827 L310 SR | O9: 21013733
A10: ORELLE PRO L03 400-830 AS FG CW 40 | B10: LINELIGHT | C10: LINELIGHT Stable white | D10: 310mm | E10: 400 | F10: 830 | G10: AS | H10: Diffuse | I10: Cowl | J10: 40 | K10: LINELIGHT Stable white310mm830DiffuseCowl | L10: ORELLE PRO L03 400-830 AS FG CW 40 | M10: =IFERROR(VLOOKUP(L10,Sheet4!B:C,2,0),"Contact acdc for SAP code") -> 21005401 | N10: LINELIGHT 400-830 L310 CW SR | O10: 21013702
A11: ORELLE PRO L03 400-830 AS FG 40 | B11: LINELIGHT | C11: LINELIGHT Stable white | D11: 310mm | E11: 400 | F11: 830 | G11: AS | H11: Diffuse | I11: No Cowl | J11: 40 | K11: LINELIGHT Stable white310mm830DiffuseNo Cowl | L11: ORELLE PRO L03 400-830 AS FG 40 | M11: =IFERROR(VLOOKUP(L11,Sheet4!B:C,2,0),"Contact acdc for SAP code") -> 21005402 | N11: LINELIGHT 400-830 L310 SR | O11: 21013703
A12: ORELLE PRO L03 400-842 AS FG CW 40 | B12: LINELIGHT | C12: LINELIGHT Stable white | D12: 310mm | E12: 400 | F12: 840 | G12: AS | H12: Diffuse | I12: Cowl | J12: 40 | K12: LINELIGHT Stable white310mm840DiffuseCowl | L12: ORELLE PRO L03 400-840 AS FG CW 40 | M12: =IFERROR(VLOOKUP(L12,Sheet4!B:C,2,0),"Contact acdc for SAP code") -> Contact acdc for SAP code | N12: LINELIGHT 400-840 L310 CW SR | O12: Create code in MyProduct VIVA
A13: ORELLE PRO L03 400-842 AS FG 40 | B13: LINELIGHT | C13: LINELIGHT Stable white | D13: 310mm | E13: 400 | F13: 840 | G13: AS | H13: Diffuse | I13: No Cowl | J13: 40 | K13: LINELIGHT Stable white310mm840DiffuseNo Cowl | L13: ORELLE PRO L03 400-840 AS FG 40 | M13: =IFERROR(VLOOKUP(L13,Sheet4!B:C,2,0),"Contact acdc for SAP code") -> Contact acdc for SAP code | N13: LINELIGHT 400-840 L310 SR | O13: Create code in MyProduct VIVA
A14: ORELLE PRO L06 700-827 AS FG CW 40 | B14: LINELIGHT | C14: LINELIGHT Stable white | D14: 610mm | E14: 700 | F14: 827 | G14: AS | H14: Diffuse | I14: Cowl | J14: 40 | K14: LINELIGHT Stable white610mm827DiffuseCowl | L14: ORELLE PRO L06 700-827 AS FG CW 40 | M14: =IFERROR(VLOOKUP(L14,Sheet4!B:C,2,0),"Contact acdc for SAP code") -> 21005405 | N14: LINELIGHT 700-827 L610 CW SR | O14: 21013734
A15: ORELLE PRO L06 700-827 AS FG 40 | B15: LINELIGHT | C15: LINELIGHT Stable white | D15: 610mm | E15: 700 | F15: 827 | G15: AS | H15: Diffuse | I15: No Cowl | J15: 40 | K15: LINELIGHT Stable white610mm827DiffuseNo Cowl | L15: ORELLE PRO L06 700-827 AS FG 40 | M15: =IFERROR(VLOOKUP(L15,Sheet4!B:C,2,0),"Contact acdc for SAP code") -> 21005406 | N15: LINELIGHT 700-827 L610 SR | O15: 21013735
A16: ORELLE PRO L06 700-830 AS FG CW 40 | B16: LINELIGHT | C16: LINELIGHT Stable white | D16: 610mm | E16: 700 | F16: 830 | G16: AS | H16: Diffuse | I16: Cowl | J16: 40 | K16: LINELIGHT Stable white610mm830DiffuseCowl | L16: ORELLE PRO L06 700-830 AS FG CW 40 | M16: =IFERROR(VLOOKUP(L16,Sheet4!B:C,2,0),"Contact acdc for SAP code") -> 21005407 | N16: LINELIGHT 700-830 L610 CW SR | O16: 21013704
A17: ORELLE PRO L06 700-830 AS FG 40 | B17: LINELIGHT | C17: LINELIGHT Stable white | D17: 610mm | E17: 700 | F17: 830 | G17: AS | H17: Diffuse | I17: No Cowl | J17: 40 | K17: LINELIGHT Stable white610mm830DiffuseNo Cowl | L17: ORELLE PRO L06 700-830 AS FG 40 | M17: =IFERROR(VLOOKUP(L17,Sheet4!B:C,2,0),"Contact acdc for SAP code") -> 21005408 | N17: LINELIGHT 700-830 L610 SR | O17: 21013705
A18: ORELLE PRO L06 700-842 AS FG CW 40 | B18: LINELIGHT | C18: LINELIGHT Stable white | D18: 610mm | E18: 700 | F18: 840 | G18: AS | H18: Diffuse | I18: Cowl | J18: 40 | K18: LINELIGHT Stable white610mm840DiffuseCowl | L18: ORELLE PRO L06 700-840 AS FG CW 40 | M18: =IFERROR(VLOOKUP(L18,Sheet4!B:C,2,0),"Contact acdc for SAP code") -> Contact acdc for SAP code | N18: LINELIGHT 700-840 L610 CW SR | O18: Create code in MyProduct VIVA
A19: ORELLE PRO L06 700-842 AS FG 40 | B19: LINELIGHT | C19: LINELIGHT Stable white | D19: 610mm | E19: 700 | F19: 840 | G19: AS | H19: Diffuse | I19: No Cowl | J19: 40 | K19: LINELIGHT Stable white610mm840DiffuseNo Cowl | L19: ORELLE PRO L06 700-840 AS FG 40 | M19: =IFERROR(VLOOKUP(L19,Sheet4!B:C,2,0),"Contact acdc for SAP code") -> Contact acdc for SAP code | N19: LINELIGHT 700-840 L610 SR | O19: Create code in MyProduct VIVA
A20: ORELLE PRO L09 1000-827 AS FG CW 40 | B20: LINELIGHT | C20: LINELIGHT Stable white | D20: 910mm | E20: 1000 | F20: 827 | G20: AS | H20: Diffuse | I20: Cowl | J20: 40 | K20: LINELIGHT Stable white910mm827DiffuseCowl | L20: ORELLE PRO L09 1000-827 AS FG CW 40 | M20: =IFERROR(VLOOKUP(L20,Sheet4!B:C,2,0),"Contact acdc for SAP code") -> 21005411 | N20: LINELIGHT 1000-827 L910 CW SR | O20: 21013736
A21: ORELLE PRO L09 1000-827 AS FG 40 | B21: LINELIGHT | C21: LINELIGHT Stable white | D21: 910mm | E21: 1000 | F21: 827 | G21: AS | H21: Diffuse | I21: No Cowl | J21: 40 | K21: LINELIGHT Stable white910mm827DiffuseNo Cowl | L21: ORELLE PRO L09 1000-827 AS FG 40 | M21: =IFERROR(VLOOKUP(L21,Sheet4!B:C,2,0),"Contact acdc for SAP code") -> 21005412 | N21: LINELIGHT 1000-827 L910 SR | O21: 21013737
A22: ORELLE PRO L09 1000-830 AS FG CW 40 | B22: LINELIGHT | C22: LINELIGHT Stable white | D22: 910mm | E22: 1000 | F22: 830 | G22: AS | H22: Diffuse | I22: Cowl | J22: 40 | K22: LINELIGHT Stable white910mm830DiffuseCowl | L22: ORELLE PRO L09 1000-830 AS FG CW 40 | M22: =IFERROR(VLOOKUP(L22,Sheet4!B:C,2,0),"Contact acdc for SAP code") -> 21005413 | N22: LINELIGHT 1000-830 L910 CW SR | O22: 21013706
A23: ORELLE PRO L09 1000-830 AS FG 40 | B23: LINELIGHT | C23: LINELIGHT Stable white | D23: 910mm | E23: 1000 | F23: 830 | G23: AS | H23: Diffuse | I23: No Cowl | J23: 40 | K23: LINELIGHT Stable white910mm830DiffuseNo Cowl | L23: ORELLE PRO L09 1000-830 AS FG 40 | M23: =IFERROR(VLOOKUP(L23,Sheet4!B:C,2,0),"Contact acdc for SAP code") -> 21005414 | N23: LINELIGHT 1000-830 L910 SR | O23: 21013707
A24: ORELLE PRO L09 1000-842 AS FG CW 40 | B24: LINELIGHT | C24: LINELIGHT Stable white | D24: 910mm | E24: 1000 | F24: 840 | G24: AS | H24: Diffuse | I24: Cowl | J24: 40 | K24: LINELIGHT Stable white910mm840DiffuseCowl | L24: ORELLE PRO L09 1000-840 AS FG CW 40 | M24: =IFERROR(VLOOKUP(L24,Sheet4!B:C,2,0),"Contact acdc for SAP code") -> Contact acdc for SAP code | N24: LINELIGHT 1000-840 L910 CW SR | O24: Create code in MyProduct VIVA
A25: ORELLE PRO L09 1000-842 AS FG 40 | B25: LINELIGHT | C25: LINELIGHT Stable white | D25: 910mm | E25: 1000 | F25: 840 | G25: AS | H25: Diffuse | I25: No Cowl | J25: 40 | K25: LINELIGHT Stable white910mm840DiffuseNo Cowl | L25: ORELLE PRO L09 1000-840 AS FG 40 | M25: =IFERROR(VLOOKUP(L25,Sheet4!B:C,2,0),"Contact acdc for SAP code") -> Contact acdc for SAP code | N25: LINELIGHT 1000-840 L910 SR | O25: Create code in MyProduct VIVA
A26: ORELLE PRO L18 2200-827 AS FG CW 40 | B26: LINELIGHT | C26: LINELIGHT Stable white | D26: 1810mm | E26: 2200 | F26: 827 | G26: AS | H26: Diffuse | I26: Cowl | J26: 40 | K26: LINELIGHT Stable white1810mm827DiffuseCowl | L26: ORELLE PRO L18 2200-827 AS FG CW 40 | M26: =IFERROR(VLOOKUP(L26,Sheet4!B:C,2,0),"Contact acdc for SAP code") -> 21005417 | N26: LINELIGHT 2200-827 L1810 CW SR | O26: 21013738
A27: ORELLE PRO L18 2200-827 AS FG 40 | B27: LINELIGHT | C27: LINELIGHT Stable white | D27: 1810mm | E27: 2200 | F27: 827 | G27: AS | H27: Diffuse | I27: No Cowl | J27: 40 | K27: LINELIGHT Stable white1810mm827DiffuseNo Cowl | L27: ORELLE PRO L18 2200-827 AS FG 40 | M27: =IFERROR(VLOOKUP(L27,Sheet4!B:C,2,0),"Contact acdc for SAP code") -> 21005418 | N27: LINELIGHT 2200-827 L1810 SR | O27: 21013739
A28: ORELLE PRO L18 2200-830 AS FG CW 40 | B28: LINELIGHT | C28: LINELIGHT Stable white | D28: 1810mm | E28: 2200 | F28: 830 | G28: AS | H28: Diffuse | I28: Cowl | J28: 40 | K28: LINELIGHT Stable white1810mm830DiffuseCowl | L28: ORELLE PRO L18 2200-830 AS FG CW 40 | M28: =IFERROR(VLOOKUP(L28,Sheet4!B:C,2,0),"Contact acdc for SAP code") -> 21005419 | N28: LINELIGHT 2200-830 L1810 CW SR | O28: 21013708
A29: ORELLE PRO L18 2200-830 AS FG 40 | B29: LINELIGHT | C29: LINELIGHT Stable white | D29: 1810mm | E29: 2200 | F29: 830 | G29: AS | H29: Diffuse | I29: No Cowl | J29: 40 | K29: LINELIGHT Stable white1810mm830DiffuseNo Cowl | L29: ORELLE PRO L18 2200-830 AS FG 40 | M29: =IFERROR(VLOOKUP(L29,Sheet4!B:C,2,0),"Contact acdc for SAP code") -> 21005420 | N29: LINELIGHT 2200-830 L1810 SR | O29: 21013709
A30: ORELLE PRO L18 2200-842 AS FG CW 40 | B30: LINELIGHT | C30: LINELIGHT Stable white | D30: 1810mm | E30: 2200 | F30: 840 | G30: AS | H30: Diffuse | I30: Cowl | J30: 40 | K30: LINELIGHT Stable white1810mm840DiffuseCowl | L30: ORELLE PRO L18 2200-840 AS FG CW 40 | M30: =IFERROR(VLOOKUP(L30,Sheet4!B:C,2,0),"Contact acdc for SAP code") -> Contact acdc for SAP code | N30: LINELIGHT 2200-840 L1810 CW SR | O30: Create code in MyProduct VIVA
A31: ORELLE PRO L18 2200-842 AS FG 40 | B31: LINELIGHT | C31: LINELIGHT Stable white | D31: 1810mm | E31: 2200 | F31: 840 | G31: AS | H31: Diffuse | I31: No Cowl | J31: 40 | K31: LINELIGHT Stable white1810mm840DiffuseNo Cowl | L31: ORELLE PRO L18 2200-840 AS FG 40 | M31: =IFERROR(VLOOKUP(L31,Sheet4!B:C,2,0),"Contact acdc for SAP code") -> Contact acdc for SAP code | N31: LINELIGHT 2200-840 L1810 SR | O31: Create code in MyProduct VIVA
A32: ORELLE PRO L01 140-927 AS FG CW 40 | B32: LINELIGHT | C32: LINELIGHT Stable white | D32: 160mm | E32: 140 | F32: 927 | G32: AS | H32: Diffuse | I32: Cowl | J32: 40 | K32: LINELIGHT Stable white160mm927DiffuseCowl | L32: ORELLE PRO L01 140-927 AS FG CW 40 | M32: =IFERROR(VLOOKUP(L32,Sheet4!B:C,2,0),"Contact acdc for SAP code") -> 21005423 | N32: LINELIGHT 140-927 L180 CW SR | O32: Create code in MyProduct VIVA
A33: ORELLE PRO L01 140-927 AS FG 40 | B33: LINELIGHT | C33: LINELIGHT Stable white | D33: 160mm | E33: 140 | F33: 927 | G33: AS | H33: Diffuse | I33: No Cowl | J33: 40 | K33: LINELIGHT Stable white160mm927DiffuseNo Cowl | L33: ORELLE PRO L01 140-927 AS FG 40 | M33: =IFERROR(VLOOKUP(L33,Sheet4!B:C,2,0),"Contact acdc for SAP code") -> 21005424 | N33: LINELIGHT 140-927 L180 SR | O33: Create code in MyProduct VIVA
A34: ORELLE PRO L01 140-930 AS FG CW 40 | B34: LINELIGHT | C34: LINELIGHT Stable white | D34: 160mm | E34: 140 | F34: 930 | G34: AS | H34: Diffuse | I34: Cowl | J34: 40 | K34: LINELIGHT Stable white160mm930DiffuseCowl | L34: ORELLE PRO L01 140-930 AS FG CW 40 | M34: =IFERROR(VLOOKUP(L34,Sheet4!B:C,2,0),"Contact acdc for SAP code") -> 21005425 | N34: LINELIGHT 140-930 L180 CW SR | O34: Create code in MyProduct VIVA
A35: ORELLE PRO L01 140-930 AS FG 40 | B35: LINELIGHT | C35: LINELIGHT Stable white | D35: 160mm | E35: 140 | F35: 930 | G35: AS | H35: Diffuse | I35: No Cowl | J35: 40 | K35: LINELIGHT Stable white160mm930DiffuseNo Cowl | L35: ORELLE PRO L01 140-930 AS FG 40 | M35: =IFERROR(VLOOKUP(L35,Sheet4!B:C,2,0),"Contact acdc for SAP code") -> 21005426 | N35: LINELIGHT 140-930 L180 SR | O35: Create code in MyProduct VIVA
A36: ORELLE PRO L03 300-927 AS FG CW 40 | B36: LINELIGHT | C36: LINELIGHT Stable white | D36: 310mm | E36: 300 | F36: 927 | G36: AS | H36: Diffuse | I36: Cowl | J36: 40 | K36: LINELIGHT Stable white310mm927DiffuseCowl | L36: ORELLE PRO L03 300-927 AS FG CW 40 | M36: =IFERROR(VLOOKUP(L36,Sheet4!B:C,2,0),"Contact acdc for SAP code") -> 21005427 | N36: LINELIGHT 300-927 L310 CW SR | O36: Create code in MyProduct VIVA
A37: ORELLE PRO L03 300-927 AS FG 40 | B37: LINELIGHT | C37: LINELIGHT Stable white | D37: 310mm | E37: 300 | F37: 927 | G37: AS | H37: Diffuse | I37: No Cowl | J37: 40 | K37: LINELIGHT Stable white310mm927DiffuseNo Cowl | L37: ORELLE PRO L03 300-927 AS FG 40 | M37: =IFERROR(VLOOKUP(L37,Sheet4!B:C,2,0),"Contact acdc for SAP code") -> 21005428 | N37: LINELIGHT 300-927 L310 SR | O37: Create code in MyProduct VIVA
A38: ORELLE PRO L03 300-930 AS FG CW 40 | B38: LINELIGHT | C38: LINELIGHT Stable white | D38: 310mm | E38: 300 | F38: 930 | G38: AS | H38: Diffuse | I38: Cowl | J38: 40 | K38: LINELIGHT Stable white310mm930DiffuseCowl | L38: ORELLE PRO L03 300-930 AS FG CW 40 | M38: =IFERROR(VLOOKUP(L38,Sheet4!B:C,2,0),"Contact acdc for SAP code") -> 21005429 | N38: LINELIGHT 300-930 L310 CW SR | O38: Create code in MyProduct VIVA
A39: ORELLE PRO L03 300-930 AS FG 40 | B39: LINELIGHT | C39: LINELIGHT Stable white | D39: 310mm | E39: 300 | F39: 930 | G39: AS | H39: Diffuse | I39: No Cowl | J39: 40 | K39: LINELIGHT Stable white310mm930DiffuseNo Cowl | L39: ORELLE PRO L03 300-930 AS FG 40 | M39: =IFERROR(VLOOKUP(L39,Sheet4!B:C,2,0),"Contact acdc for SAP code") -> 21005430 | N39: LINELIGHT 300-930 L310 SR | O39: Create code in MyProduct VIVA
A40: ORELLE PRO L06 600-927 AS FG CW 40 | B40: LINELIGHT | C40: LINELIGHT Stable white | D40: 610mm | E40: 600 | F40: 927 | G40: AS | H40: Diffuse | I40: Cowl | J40: 40 | K40: LINELIGHT Stable white610mm927DiffuseCowl | L40: ORELLE PRO L06 600-927 AS FG CW 40 | M40: =IFERROR(VLOOKUP(L40,Sheet4!B:C,2,0),"Contact acdc for SAP code") -> 21005431 | N40: LINELIGHT 600-927 L610 CW SR | O40: Create code in MyProduct VIVA
A41: ORELLE PRO L06 600-927 AS FG 40 | B41: LINELIGHT | C41: LINELIGHT Stable white | D41: 610mm | E41: 600 | F41: 927 | G41: AS | H41: Diffuse | I41: No Cowl | J41: 40 | K41: LINELIGHT Stable white610mm927DiffuseNo Cowl | L41: ORELLE PRO L06 600-927 AS FG 40 | M41: =IFERROR(VLOOKUP(L41,Sheet4!B:C,2,0),"Contact acdc for SAP code") -> 21005432 | N41: LINELIGHT 600-927 L610 SR | O41: Create code in MyProduct VIVA
A42: ORELLE PRO L06 600-930 AS FG CW 40 | B42: LINELIGHT | C42: LINELIGHT Stable white | D42: 610mm | E42: 600 | F42: 930 | G42: AS | H42: Diffuse | I42: Cowl | J42: 40 | K42: LINELIGHT Stable white610mm930DiffuseCowl | L42: ORELLE PRO L06 600-930 AS FG CW 40 | M42: =IFERROR(VLOOKUP(L42,Sheet4!B:C,2,0),"Contact acdc for SAP code") -> 21005433 | N42: LINELIGHT 600-930 L610 CW SR | O42: Create code in MyProduct VIVA
A43: ORELLE PRO L06 600-930 AS FG 40 | B43: LINELIGHT | C43: LINELIGHT Stable white | D43: 610mm | E43: 600 | F43: 930 | G43: AS | H43: Diffuse | I43: No Cowl | J43: 40 | K43: LINELIGHT Stable white610mm930DiffuseNo Cowl | L43: ORELLE PRO L06 600-930 AS FG 40 | M43: =IFERROR(VLOOKUP(L43,Sheet4!B:C,2,0),"Contact acdc for SAP code") -> 21005434 | N43: LINELIGHT 600-930 L610 SR | O43: Create code in MyProduct VIVA
A44: ORELLE PRO L09 900-927 AS FG CW 40 | B44: LINELIGHT | C44: LINELIGHT Stable white | D44: 910mm | E44: 900 | F44: 927 | G44: AS | H44: Diffuse | I44: Cowl | J44: 40 | K44: LINELIGHT Stable white910mm927DiffuseCowl | L44: ORELLE PRO L09 900-927 AS FG CW 40 | M44: =IFERROR(VLOOKUP(L44,Sheet4!B:C,2,0),"Contact acdc for SAP code") -> 21005435 | N44: LINELIGHT 900-927 L910 CW SR | O44: Create code in MyProduct VIVA
A45: ORELLE PRO L09 900-927 AS FG 40 | B45: LINELIGHT | C45: LINELIGHT Stable white | D45: 910mm | E45: 900 | F45: 927 | G45: AS | H45: Diffuse | I45: No Cowl | J45: 40 | K45: LINELIGHT Stable white910mm927DiffuseNo Cowl | L45: ORELLE PRO L09 900-927 AS FG 40 | M45: =IFERROR(VLOOKUP(L45,Sheet4!B:C,2,0),"Contact acdc for SAP code") -> 21005436 | N45: LINELIGHT 900-927 L910 SR | O45: Create code in MyProduct VIVA
A46: ORELLE PRO L09 900-930 AS FG CW 40 | B46: LINELIGHT | C46: LINELIGHT Stable white | D46: 910mm | E46: 900 | F46: 930 | G46: AS | H46: Diffuse | I46: Cowl | J46: 40 | K46: LINELIGHT Stable white910mm930DiffuseCowl | L46: ORELLE PRO L09 900-930 AS FG CW 40 | M46: =IFERROR(VLOOKUP(L46,Sheet4!B:C,2,0),"Contact acdc for SAP code") -> 21005437 | N46: LINELIGHT 900-930 L910 CW SR | O46: Create code in MyProduct VIVA
A47: ORELLE PRO L09 900-930 AS FG 40 | B47: LINELIGHT | C47: LINELIGHT Stable white | D47: 910mm | E47: 900 | F47: 930 | G47: AS | H47: Diffuse | I47: No Cowl | J47: 40 | K47: LINELIGHT Stable white910mm930DiffuseNo Cowl | L47: ORELLE PRO L09 900-930 AS FG 40 | M47: =IFERROR(VLOOKUP(L47,Sheet4!B:C,2,0),"Contact acdc for SAP code") -> 21005438 | N47: LINELIGHT 900-930 L910 SR | O47: Create code in MyProduct VIVA
A48: ORELLE PRO L18 1800-927 AS FG CW 40 | B48: LINELIGHT | C48: LINELIGHT Stable white | D48: 1810mm | E48: 1800 | F48: 927 | G48: AS | H48: Diffuse | I48: Cowl | J48: 40 | K48: LINELIGHT Stable white1810mm927DiffuseCowl | L48: ORELLE PRO L18 1800-927 AS FG CW 40 | M48: =IFERROR(VLOOKUP(L48,Sheet4!B:C,2,0),"Contact acdc for SAP code") -> 21005439 | N48: LINELIGHT 1800-927 L1810 CW SR | O48: Create code in MyProduct VIVA
A49: ORELLE PRO L18 1800-927 AS FG 40 | B49: LINELIGHT | C49: LINELIGHT Stable white | D49: 1810mm | E49: 1800 | F49: 927 | G49: AS | H49: Diffuse | I49: No Cowl | J49: 40 | K49: LINELIGHT Stable white1810mm927DiffuseNo Cowl | L49: ORELLE PRO L18 1800-927 AS FG 40 | M49: =IFERROR(VLOOKUP(L49,Sheet4!B:C,2,0),"Contact acdc for SAP code") -> 21005440 | N49: LINELIGHT 1800-927 L1810 SR | O49: Create code in MyProduct VIVA
A50: ORELLE PRO L18 1800-930 AS FG CW 40 | B50: LINELIGHT | C50: LINELIGHT Stable white | D50: 1810mm | E50: 1800 | F50: 930 | G50: AS | H50: Diffuse | I50: Cowl | J50: 40 | K50: LINELIGHT Stable white1810mm930DiffuseCowl | L50: ORELLE PRO L18 1800-930 AS FG CW 40 | M50: =IFERROR(VLOOKUP(L50,Sheet4!B:C,2,0),"Contact acdc for SAP code") -> 21005441 | N50: LINELIGHT 1800-930 L1810 CW SR | O50: Create code in MyProduct VIVA
A51: ORELLE PRO L18 1800-930 AS FG 40 | B51: LINELIGHT | C51: LINELIGHT Stable white | D51: 1810mm | E51: 1800 | F51: 930 | G51: AS | H51: Diffuse | I51: No Cowl | J51: 40 | K51: LINELIGHT Stable white1810mm930DiffuseNo Cowl | L51: ORELLE PRO L18 1800-930 AS FG 40 | M51: =IFERROR(VLOOKUP(L51,Sheet4!B:C,2,0),"Contact acdc for SAP code") -> 21005442 | N51: LINELIGHT 1800-930 L1810 SR | O51: Create code in MyProduct VIVA
A52: ORELLE PRO L01 100-DW AS FG CW 40 | B52: LINELIGHT | C52: LINELIGHT Balanced white | D52: 160mm | E52: 100 | F52: 827-65 | G52: AS | H52: Diffuse | I52: Cowl | J52: 40 | K52: LINELIGHT Balanced white160mm827-65DiffuseCowl | L52: ORELLE PRO L01 100-DW AS FG CW 40 | M52: =IFERROR(VLOOKUP(L52,Sheet4!B:C,2,0),"Contact acdc for SAP code") -> Contact acdc for SAP code | N52: LINELIGHT 100-827-65 L160 CW SR | O52: 21013720
A53: ORELLE PRO L01 100-DW AS FG 40 | B53: LINELIGHT | C53: LINELIGHT Balanced white | D53: 160mm | E53: 100 | F53: 827-65 | G53: AS | H53: Diffuse | I53: No Cowl | J53: 40 | K53: LINELIGHT Balanced white160mm827-65DiffuseNo Cowl | L53: ORELLE PRO L01 100-DW AS FG 40 | M53: =IFERROR(VLOOKUP(L53,Sheet4!B:C,2,0),"Contact acdc for SAP code") -> 21005494 | N53: LINELIGHT 100-827-865 L160 SR | O53: 21013721
A54: ORELLE PRO L03 200-DW AS FG CW 40 | B54: LINELIGHT | C54: LINELIGHT Balanced white | D54: 310mm | E54: 200 | F54: 827-65 | G54: AS | H54: Diffuse | I54: Cowl | J54: 40 | K54: LINELIGHT Balanced white310mm827-65DiffuseCowl | L54: ORELLE PRO L03 200-DW AS FG CW 40 | M54: =IFERROR(VLOOKUP(L54,Sheet4!B:C,2,0),"Contact acdc for SAP code") -> Contact acdc for SAP code | N54: LINELIGHT 200-827-65 L310 CW SR | O54: 21013722
A55: ORELLE PRO L03 200-DW AS FG 40 | B55: LINELIGHT | C55: LINELIGHT Balanced white | D55: 310mm | E55: 200 | F55: 827-65 | G55: AS | H55: Diffuse | I55: No Cowl | J55: 40 | K55: LINELIGHT Balanced white310mm827-65DiffuseNo Cowl | L55: ORELLE PRO L03 200-DW AS FG 40 | M55: =IFERROR(VLOOKUP(L55,Sheet4!B:C,2,0),"Contact acdc for SAP code") -> 21005496 | N55: LINELIGHT 200-827-65 L310 SR | O55: 21013723
A56: ORELLE PRO L06 400-DW AS FG CW 40 | B56: LINELIGHT | C56: LINELIGHT Balanced white | D56: 610mm | E56: 400 | F56: 827-65 | G56: AS | H56: Diffuse | I56: Cowl | J56: 40 | K56: LINELIGHT Balanced white610mm827-65DiffuseCowl | L56: ORELLE PRO L06 400-DW AS FG CW 40 | M56: =IFERROR(VLOOKUP(L56,Sheet4!B:C,2,0),"Contact acdc for SAP code") -> Contact acdc for SAP code | N56: LINELIGHT 400-827-65 L610 CW SR | O56: 21013724
A57: ORELLE PRO L06 400-DW AS FG 40 | B57: LINELIGHT | C57: LINELIGHT Balanced white | D57: 610mm | E57: 400 | F57: 827-65 | G57: AS | H57: Diffuse | I57: No Cowl | J57: 40 | K57: LINELIGHT Balanced white610mm827-65DiffuseNo Cowl | L57: ORELLE PRO L06 400-DW AS FG 40 | M57: =IFERROR(VLOOKUP(L57,Sheet4!B:C,2,0),"Contact acdc for SAP code") -> 21005498 | N57: LINELIGHT 400-827-65 L610 SR | O57: 21013725
A58: ORELLE PRO L09 600-DW AS FG CW 40 | B58: LINELIGHT | C58: LINELIGHT Balanced white | D58: 910mm | E58: 600 | F58: 827-65 | G58: AS | H58: Diffuse | I58: Cowl | J58: 40 | K58: LINELIGHT Balanced white910mm827-65DiffuseCowl | L58: ORELLE PRO L09 600-DW AS FG CW 40 | M58: =IFERROR(VLOOKUP(L58,Sheet4!B:C,2,0),"Contact acdc for SAP code") -> Contact acdc for SAP code | N58: LINELIGHT 600-827-65 L910 CW SR | O58: 21013726
A59: ORELLE PRO L09 600-DW AS FG 40 | B59: LINELIGHT | C59: LINELIGHT Balanced white | D59: 910mm | E59: 600 | F59: 827-65 | G59: AS | H59: Diffuse | I59: No Cowl | J59: 40 | K59: LINELIGHT Balanced white910mm827-65DiffuseNo Cowl | L59: ORELLE PRO L09 600-DW AS FG 40 | M59: =IFERROR(VLOOKUP(L59,Sheet4!B:C,2,0),"Contact acdc for SAP code") -> 21005500 | N59: LINELIGHT 600-827-65 L910 SR | O59: 21013727
A60: ORELLE PRO L18 1300-DW AS FG CW 40 | B60: LINELIGHT | C60: LINELIGHT Balanced white | D60: 1810mm | E60: 1300 | F60: 827-65 | G60: AS | H60: Diffuse | I60: Cowl | J60: 40 | K60: LINELIGHT Balanced white1810mm827-65DiffuseCowl | L60: ORELLE PRO L18 1300-DW AS FG CW 40 | M60: =IFERROR(VLOOKUP(L60,Sheet4!B:C,2,0),"Contact acdc for SAP code") -> Contact acdc for SAP code | N60: LINELIGHT 1300-827-65 L1810 CW SR | O60: 21013728
A61: ORELLE PRO L18 1300-DW AS FG 40 | B61: LINELIGHT | C61: LINELIGHT Balanced white | D61: 1810mm | E61: 1300 | F61: 827-65 | G61: AS | H61: Diffuse | I61: No Cowl | J61: 40 | K61: LINELIGHT Balanced white1810mm827-65DiffuseNo Cowl | L61: ORELLE PRO L18 1300-DW AS FG 40 | M61: =IFERROR(VLOOKUP(L61,Sheet4!B:C,2,0),"Contact acdc for SAP code") -> 21005502 | N61: LINELIGHT 1300-827-65 L1810 SR | O61: 21013729
A62: ORELLE PRO+ L01 380-827 AS FG CW 40 | B62: LINELIGHT | C62: LINELIGHT Stable white (HO) | D62: 160mm | E62: 380 | F62: 827 | G62: AS | H62: Diffuse | I62: Cowl | J62: 40 | K62: LINELIGHT Stable white (HO)160mm827DiffuseCowl | L62: ORELLE PRO+ L01 380-827 AS FG CW 40 | M62: 21005443 | N62: LINELIGHT 380-827 L160 CW SR | O62: 21013740
A63: ORELLE PRO+ L01 380-827 AS FG 40 | B63: LINELIGHT | C63: LINELIGHT Stable white (HO) | D63: 160mm | E63: 380 | F63: 827 | G63: AS | H63: Diffuse | I63: No Cowl | J63: 40 | K63: LINELIGHT Stable white (HO)160mm827DiffuseNo Cowl | L63: ORELLE PRO+ L01 380-827 AS FG 40 | M63: 21005444 | N63: LINELIGHT 380-827 L160 SR | O63: 21013741
A64: ORELLE PRO+ L01 380-830 AS FG CW 40 | B64: LINELIGHT | C64: LINELIGHT Stable white (HO) | D64: 160mm | E64: 380 | F64: 830 | G64: AS | H64: Diffuse | I64: Cowl | J64: 40 | K64: LINELIGHT Stable white (HO)160mm830DiffuseCowl | L64: ORELLE PRO+ L01 380-830 AS FG CW 40 | M64: 21005445 | N64: LINELIGHT 380-830 L160 CW SR | O64: 21013710
A65: ORELLE PRO+ L01 380-830 AS FG 40 | B65: LINELIGHT | C65: LINELIGHT Stable white (HO) | D65: 160mm | E65: 380 | F65: 830 | G65: AS | H65: Diffuse | I65: No Cowl | J65: 40 | K65: LINELIGHT Stable white (HO)160mm830DiffuseNo Cowl | L65: ORELLE PRO+ L01 380-830 AS FG 40 | M65: 21005446 | N65: LINELIGHT 380-830 L160 SR | O65: 21013711
A66: ORELLE PRO+ L01 380-842 AS FG CW 40 | B66: LINELIGHT | C66: LINELIGHT Stable white (HO) | D66: 160mm | E66: 380 | F66: 840 | G66: AS | H66: Diffuse | I66: Cowl | J66: 40 | K66: LINELIGHT Stable white (HO)160mm840DiffuseCowl | L66: ORELLE PRO+ L01 380-840 AS FG CW 40 | M66: 21005447 | N66: 0 | O66: Create code in MyProduct VIVA
A67: ORELLE PRO+ L01 380-842 AS FG 40 | B67: LINELIGHT | C67: LINELIGHT Stable white (HO) | D67: 160mm | E67: 380 | F67: 840 | G67: AS | H67: Diffuse | I67: No Cowl | J67: 40 | K67: =CONCATENATE(C67,D67,F67,H67,I67) -> LINELIGHT Stable white (HO)160mm840DiffuseNo Cowl | L67: ORELLE PRO+ L01 380-840 AS FG 40 | M67: 21005448 | N67: 0 | O67: Create code in MyProduct VIVA
A68: ORELLE PRO+ L03 800-827 AS FG CW 40 | B68: LINELIGHT | C68: LINELIGHT Stable white (HO) | D68: 310mm | E68: 800 | F68: 827 | G68: AS | H68: Diffuse | I68: Cowl | J68: 40 | K68: LINELIGHT Stable white (HO)310mm827DiffuseCowl | L68: ORELLE PRO+ L03 800-827 AS FG CW 40 | M68: 21005449 | N68: LINELIGHT 800-827 L310 CW SR | O68: 21013742
A69: ORELLE PRO+ L03 800-827 AS FG 40 | B69: LINELIGHT | C69: LINELIGHT Stable white (HO) | D69: 310mm | E69: 800 | F69: 827 | G69: AS | H69: Diffuse | I69: No Cowl | J69: 40 | K69: LINELIGHT Stable white (HO)310mm827DiffuseNo Cowl | L69: ORELLE PRO+ L03 800-827 AS FG 40 | M69: 21005450 | N69: LINELIGHT 800-827 L310 SR | O69: 21013743
A70: ORELLE PRO+ L03 800-830 AS FG CW 40 | B70: LINELIGHT | C70: LINELIGHT Stable white (HO) | D70: 310mm | E70: 800 | F70: 830 | G70: AS | H70: Diffuse | I70: Cowl | J70: 40 | K70: LINELIGHT Stable white (HO)310mm830DiffuseCowl | L70: ORELLE PRO+ L03 800-830 AS FG CW 40 | M70: 21005451 | N70: LINELIGHT 800-830 L310 CW SR | O70: 21013712
A71: ORELLE PRO+ L03 800-830 AS FG 40 | B71: LINELIGHT | C71: LINELIGHT Stable white (HO) | D71: 310mm | E71: 800 | F71: 830 | G71: AS | H71: Diffuse | I71: No Cowl | J71: 40 | K71: LINELIGHT Stable white (HO)310mm830DiffuseNo Cowl | L71: ORELLE PRO+ L03 800-830 AS FG 40 | M71: 21005452 | N71: LINELIGHT 800-830 L310 SR | O71: 21013713
A72: ORELLE PRO+ L03 800-842 AS FG CW 40 | B72: LINELIGHT | C72: LINELIGHT Stable white (HO) | D72: 310mm | E72: 800 | F72: 840 | G72: AS | H72: Diffuse | I72: Cowl | J72: 40 | K72: LINELIGHT Stable white (HO)310mm840DiffuseCowl | L72: ORELLE PRO+ L03 800-840 AS FG CW 40 | M72: 21005453 | N72: 0 | O72: Create code in MyProduct VIVA
A73: ORELLE PRO+ L03 800-842 AS FG 40 | B73: LINELIGHT | C73: LINELIGHT Stable white (HO) | D73: 310mm | E73: 800 | F73: 840 | G73: AS | H73: Diffuse | I73: No Cowl | J73: 40 | K73: LINELIGHT Stable white (HO)310mm840DiffuseNo Cowl | L73: ORELLE PRO+ L03 800-840 AS FG 40 | M73: 21005454 | N73: 0 | O73: Create code in MyProduct VIVA
A74: ORELLE PRO+ L06 1600-827 AS FG CW 40 | B74: LINELIGHT | C74: LINELIGHT Stable white (HO) | D74: 610mm | E74: 1600 | F74: 827 | G74: AS | H74: Diffuse | I74: Cowl | J74: 40 | K74: LINELIGHT Stable white (HO)610mm827DiffuseCowl | L74: ORELLE PRO+ L06 1600-827 AS FG CW 40 | M74: 21005455 | N74: LINELIGHT 1600-827 L610 CW SR | O74: 21013744
A75: ORELLE PRO+ L06 1600-827 AS FG 40 | B75: LINELIGHT | C75: LINELIGHT Stable white (HO) | D75: 610mm | E75: 1600 | F75: 827 | G75: AS | H75: Diffuse | I75: No Cowl | J75: 40 | K75: LINELIGHT Stable white (HO)610mm827DiffuseNo Cowl | L75: ORELLE PRO+ L06 1600-827 AS FG 40 | M75: 21005456 | N75: LINELIGHT 1600-827 L610 SR | O75: 21013745
A76: ORELLE PRO+ L06 1600-830 AS FG CW 40 | B76: LINELIGHT | C76: LINELIGHT Stable white (HO) | D76: 610mm | E76: 1600 | F76: 830 | G76: AS | H76: Diffuse | I76: Cowl | J76: 40 | K76: LINELIGHT Stable white (HO)610mm830DiffuseCowl | L76: ORELLE PRO+ L06 1600-830 AS FG CW 40 | M76: 21005457 | N76: LINELIGHT 1600-830 L610 CW SR | O76: 21013714
A77: ORELLE PRO+ L06 1600-830 AS FG 40 | B77: LINELIGHT | C77: LINELIGHT Stable white (HO) | D77: 610mm | E77: 1600 | F77: 830 | G77: AS | H77: Diffuse | I77: No Cowl | J77: 40 | K77: LINELIGHT Stable white (HO)610mm830DiffuseNo Cowl | L77: ORELLE PRO+ L06 1600-830 AS FG 40 | M77: 21005458 | N77: LINELIGHT 1600-830 L610 SR | O77: 21013715
A78: ORELLE PRO+ L06 1600-842 AS FG CW 40 | B78: LINELIGHT | C78: LINELIGHT Stable white (HO) | D78: 610mm | E78: 1600 | F78: 840 | G78: AS | H78: Diffuse | I78: Cowl | J78: 40 | K78: LINELIGHT Stable white (HO)610mm840DiffuseCowl | L78: ORELLE PRO+ L06 1600-840 AS FG CW 40 | M78: 21005459 | N78: 0 | O78: Create code in MyProduct VIVA
A79: ORELLE PRO+ L06 1600-842 AS FG 40 | B79: LINELIGHT | C79: LINELIGHT Stable white (HO) | D79: 610mm | E79: 1600 | F79: 840 | G79: AS | H79: Diffuse | I79: No Cowl | J79: 40 | K79: LINELIGHT Stable white (HO)610mm840DiffuseNo Cowl | L79: ORELLE PRO+ L06 1600-840 AS FG 40 | M79: 21005460 | N79: 0 | O79: Create code in MyProduct VIVA
A80: ORELLE PRO+ L09 2400-827 AS FG CW 40 | B80: LINELIGHT | C80: LINELIGHT Stable white (HO) | D80: 910mm | E80: 2400 | F80: 827 | G80: AS | H80: Diffuse | I80: Cowl | J80: 40 | K80: LINELIGHT Stable white (HO)910mm827DiffuseCowl | L80: ORELLE PRO+ L09 2400-827 AS FG CW 40 | M80: 21005461 | N80: LINELIGHT 2400-827 L910 CW SR | O80: 21013746
A81: ORELLE PRO+ L09 2400-827 AS FG 40 | B81: LINELIGHT | C81: LINELIGHT Stable white (HO) | D81: 910mm | E81: 2400 | F81: 827 | G81: AS | H81: Diffuse | I81: No Cowl | J81: 40 | K81: LINELIGHT Stable white (HO)910mm827DiffuseNo Cowl | L81: ORELLE PRO+ L09 2400-827 AS FG 40 | M81: 21005462 | N81: LINELIGHT 2400-827 L910 SR | O81: 21013747
A82: ORELLE PRO+ L09 2400-830 AS FG CW 40 | B82: LINELIGHT | C82: LINELIGHT Stable white (HO) | D82: 910mm | E82: 2400 | F82: 830 | G82: AS | H82: Diffuse | I82: Cowl | J82: 40 | K82: LINELIGHT Stable white (HO)910mm830DiffuseCowl | L82: ORELLE PRO+ L09 2400-830 AS FG CW 40 | M82: 21005463 | N82: LINELIGHT 2400-830 L910 CW SR | O82: 21013716
A83: ORELLE PRO+ L09 2400-830 AS FG 40 | B83: LINELIGHT | C83: LINELIGHT Stable white (HO) | D83: 910mm | E83: 2400 | F83: 830 | G83: AS | H83: Diffuse | I83: No Cowl | J83: 40 | K83: LINELIGHT Stable white (HO)910mm830DiffuseNo Cowl | L83: ORELLE PRO+ L09 2400-830 AS FG 40 | M83: 21005464 | N83: LINELIGHT 2400-830 L910 SR | O83: 21013717
A84: ORELLE PRO+ L09 2400-842 AS FG CW 40 | B84: LINELIGHT | C84: LINELIGHT Stable white (HO) | D84: 910mm | E84: 2400 | F84: 840 | G84: AS | H84: Diffuse | I84: Cowl | J84: 40 | K84: LINELIGHT Stable white (HO)910mm840DiffuseCowl | L84: ORELLE PRO+ L09 2400-840 AS FG CW 40 | M84: 21005465 | N84: 0 | O84: Create code in MyProduct VIVA
A85: ORELLE PRO+ L09 2400-842 AS FG 40 | B85: LINELIGHT | C85: LINELIGHT Stable white (HO) | D85: 910mm | E85: 2400 | F85: 840 | G85: AS | H85: Diffuse | I85: No Cowl | J85: 40 | K85: LINELIGHT Stable white (HO)910mm840DiffuseNo Cowl | L85: ORELLE PRO+ L09 2400-840 AS FG 40 | M85: 21005466 | N85: 0 | O85: Create code in MyProduct VIVA
A86: ORELLE PRO+ L18 4600-827 AS FG CW 40 | B86: LINELIGHT | C86: LINELIGHT Stable white (HO) | D86: 1810mm | E86: 4600 | F86: 827 | G86: AS | H86: Diffuse | I86: Cowl | J86: 40 | K86: LINELIGHT Stable white (HO)1810mm827DiffuseCowl | L86: ORELLE PRO+ L18 4600-827 AS FG CW 40 | M86: 21005467 | N86: LINELIGHT 4600-827 L1810 CW SR | O86: 21013748
A87: ORELLE PRO+ L18 4600-827 AS FG 40 | B87: LINELIGHT | C87: LINELIGHT Stable white (HO) | D87: 1810mm | E87: 4600 | F87: 827 | G87: AS | H87: Diffuse | I87: No Cowl | J87: 40 | K87: LINELIGHT Stable white (HO)1810mm827DiffuseNo Cowl | L87: ORELLE PRO+ L18 4600-827 AS FG 40 | M87: 21005468 | N87: LINELIGHT 4600-827 L1810 SR | O87: 21013749
A88: ORELLE PRO+ L18 4600-830 AS FG CW 40 | B88: LINELIGHT | C88: LINELIGHT Stable white (HO) | D88: 1810mm | E88: 4600 | F88: 830 | G88: AS | H88: Diffuse | I88: Cowl | J88: 40 | K88: LINELIGHT Stable white (HO)1810mm830DiffuseCowl | L88: ORELLE PRO+ L18 4600-830 AS FG CW 40 | M88: 21005469 | N88: LINELIGHT 4600-830 L1810 CW SR | O88: 21013718
A89: ORELLE PRO+ L18 4600-830 AS FG 40 | B89: LINELIGHT | C89: LINELIGHT Stable white (HO) | D89: 1810mm | E89: 4600 | F89: 830 | G89: AS | H89: Diffuse | I89: No Cowl | J89: 40 | K89: LINELIGHT Stable white (HO)1810mm830DiffuseNo Cowl | L89: ORELLE PRO+ L18 4600-830 AS FG 40 | M89: 21005470 | N89: LINELIGHT 4600-830 L1810 SR | O89: 21013719
A90: ORELLE PRO+ L18 4600-842 AS FG CW 40 | B90: LINELIGHT | C90: LINELIGHT Stable white (HO) | D90: 1810mm | E90: 4600 | F90: 840 | G90: AS | H90: Diffuse | I90: Cowl | J90: 40 | K90: LINELIGHT Stable white (HO)1810mm840DiffuseCowl | L90: ORELLE PRO+ L18 4600-840 AS FG CW 40 | M90: 21005471 | N90: 0 | O90: Create code in MyProduct VIVA
A91: ORELLE PRO+ L18 4600-842 AS FG 40 | B91: LINELIGHT | C91: LINELIGHT Stable white (HO) | D91: 1810mm | E91: 4600 | F91: 840 | G91: AS | H91: Diffuse | I91: No Cowl | J91: 40 | K91: LINELIGHT Stable white (HO)1810mm840DiffuseNo Cowl | L91: ORELLE PRO+ L18 4600-840 AS FG 40 | M91: 21005472 | N91: 0 | O91: Create code in MyProduct VIVA
A92: ORELLE PRO+ L01 300-927 AS FG CW 40 | B92: LINELIGHT | C92: LINELIGHT Stable white (HO) | D92: 160mm | E92: 300 | F92: 927 | G92: AS | H92: Diffuse | I92: Cowl | J92: 40 | K92: LINELIGHT Stable white (HO)160mm927DiffuseCowl | L92: ORELLE PRO+ L01 300-927 AS FG CW 40 | M92: 21005473 | N92: 0 | O92: Create code in MyProduct VIVA
A93: ORELLE PRO+ L01 300-927 AS FG 40 | B93: LINELIGHT | C93: LINELIGHT Stable white (HO) | D93: 160mm | E93: 300 | F93: 927 | G93: AS | H93: Diffuse | I93: No Cowl | J93: 40 | K93: LINELIGHT Stable white (HO)160mm927DiffuseNo Cowl | L93: ORELLE PRO+ L01 300-927 AS FG 40 | M93: 21005474 | N93: 0 | O93: Create code in MyProduct VIVA
A94: ORELLE PRO+ L01 300-930 AS FG CW 40 | B94: LINELIGHT | C94: LINELIGHT Stable white (HO) | D94: 160mm | E94: 300 | F94: 930 | G94: AS | H94: Diffuse | I94: Cowl | J94: 40 | K94: LINELIGHT Stable white (HO)160mm930DiffuseCowl | L94: ORELLE PRO+ L01 300-930 AS FG CW 40 | M94: 21005475 | N94: 0 | O94: Create code in MyProduct VIVA
A95: ORELLE PRO+ L01 300-930 AS FG 40 | B95: LINELIGHT | C95: LINELIGHT Stable white (HO) | D95: 160mm | E95: 300 | F95: 930 | G95: AS | H95: Diffuse | I95: No Cowl | J95: 40 | K95: LINELIGHT Stable white (HO)160mm930DiffuseNo Cowl | L95: ORELLE PRO+ L01 300-930 AS FG 40 | M95: 21005476 | N95: 0 | O95: Create code in MyProduct VIVA
A96: ORELLE PRO+ L03 600-927 AS FG CW 40 | B96: LINELIGHT | C96: LINELIGHT Stable white (HO) | D96: 310mm | E96: 600 | F96: 927 | G96: AS | H96: Diffuse | I96: Cowl | J96: 40 | K96: LINELIGHT Stable white (HO)310mm927DiffuseCowl | L96: ORELLE PRO+ L03 600-927 AS FG CW 40 | M96: 21005477 | N96: 0 | O96: Create code in MyProduct VIVA
A97: ORELLE PRO+ L03 600-927 AS FG 40 | B97: LINELIGHT | C97: LINELIGHT Stable white (HO) | D97: 310mm | E97: 600 | F97: 927 | G97: AS | H97: Diffuse | I97: No Cowl | J97: 40 | K97: LINELIGHT Stable white (HO)310mm927DiffuseNo Cowl | L97: ORELLE PRO+ L03 600-927 AS FG 40 | M97: 21005478 | N97: 0 | O97: Create code in MyProduct VIVA
A98: ORELLE PRO+ L03 600-930 AS FG CW 40 | B98: LINELIGHT | C98: LINELIGHT Stable white (HO) | D98: 310mm | E98: 600 | F98: 930 | G98: AS | H98: Diffuse | I98: Cowl | J98: 40 | K98: LINELIGHT Stable white (HO)310mm930DiffuseCowl | L98: ORELLE PRO+ L03 600-930 AS FG CW 40 | M98: 21005479 | N98: 0 | O98: Create code in MyProduct VIVA
A99: ORELLE PRO+ L03 600-930 AS FG 40 | B99: LINELIGHT | C99: LINELIGHT Stable white (HO) | D99: 310mm | E99: 600 | F99: 930 | G99: AS | H99: Diffuse | I99: No Cowl | J99: 40 | K99: LINELIGHT Stable white (HO)310mm930DiffuseNo Cowl | L99: ORELLE PRO+ L03 600-930 AS FG 40 | M99: 21005480 | N99: 0 | O99: Create code in MyProduct VIVA
A100: ORELLE PRO+ L06 1200-927 AS FG CW 40 | B100: LINELIGHT | C100: LINELIGHT Stable white (HO) | D100: 610mm | E100: 1200 | F100: 927 | G100: AS | H100: Diffuse | I100: Cowl | J100: 40 | K100: LINELIGHT Stable white (HO)610mm927DiffuseCowl | L100: ORELLE PRO+ L06 1200-927 AS FG CW 40 | M100: 21005481 | N100: 0 | O100: Create code in MyProduct VIVA
A101: ORELLE PRO+ L06 1200-927 AS FG 40 | B101: LINELIGHT | C101: LINELIGHT Stable white (HO) | D101: 610mm | E101: 1200 | F101: 927 | G101: AS | H101: Diffuse | I101: No Cowl | J101: 40 | K101: LINELIGHT Stable white (HO)610mm927DiffuseNo Cowl | L101: ORELLE PRO+ L06 1200-927 AS FG 40 | M101: 21005482 | N101: 0 | O101: Create code in MyProduct VIVA
A102: ORELLE PRO+ L06 1200-930 AS FG CW 40 | B102: LINELIGHT | C102: LINELIGHT Stable white (HO) | D102: 610mm | E102: 1200 | F102: 930 | G102: AS | H102: Diffuse | I102: Cowl | J102: 40 | K102: LINELIGHT Stable white (HO)610mm930DiffuseCowl | L102: ORELLE PRO+ L06 1200-930 AS FG CW 40 | M102: 21005483 | N102: 0 | O102: Create code in MyProduct VIVA
A103: ORELLE PRO+ L06 1200-930 AS FG 40 | B103: LINELIGHT | C103: LINELIGHT Stable white (HO) | D103: 610mm | E103: 1200 | F103: 930 | G103: AS | H103: Diffuse | I103: No Cowl | J103: 40 | K103: LINELIGHT Stable white (HO)610mm930DiffuseNo Cowl | L103: ORELLE PRO+ L06 1200-930 AS FG 40 | M103: 21005484 | N103: 0 | O103: Create code in MyProduct VIVA
A104: ORELLE PRO+ L09 1900-927 AS FG CW 40 | B104: LINELIGHT | C104: LINELIGHT Stable white (HO) | D104: 910mm | E104: 1900 | F104: 927 | G104: AS | H104: Diffuse | I104: Cowl | J104: 40 | K104: LINELIGHT Stable white (HO)910mm927DiffuseCowl | L104: ORELLE PRO+ L09 1900-927 AS FG CW 40 | M104: 21005485 | N104: 0 | O104: Create code in MyProduct VIVA
A105: ORELLE PRO+ L09 1900-927 AS FG 40 | B105: LINELIGHT | C105: LINELIGHT Stable white (HO) | D105: 910mm | E105: 1900 | F105: 927 | G105: AS | H105: Diffuse | I105: No Cowl | J105: 40 | K105: LINELIGHT Stable white (HO)910mm927DiffuseNo Cowl | L105: ORELLE PRO+ L09 1900-927 AS FG 40 | M105: 21005486 | N105: 0 | O105: Create code in MyProduct VIVA
A106: ORELLE PRO+ L09 1900-930 AS FG CW 40 | B106: LINELIGHT | C106: LINELIGHT Stable white (HO) | D106: 910mm | E106: 1900 | F106: 930 | G106: AS | H106: Diffuse | I106: Cowl | J106: 40 | K106: LINELIGHT Stable white (HO)910mm930DiffuseCowl | L106: ORELLE PRO+ L09 1900-930 AS FG CW 40 | M106: 21005487 | N106: 0 | O106: Create code in MyProduct VIVA
A107: ORELLE PRO+ L09 1900-930 AS FG 40 | B107: LINELIGHT | C107: LINELIGHT Stable white (HO) | D107: 910mm | E107: 1900 | F107: 930 | G107: AS | H107: Diffuse | I107: No Cowl | J107: 40 | K107: LINELIGHT Stable white (HO)910mm930DiffuseNo Cowl | L107: ORELLE PRO+ L09 1900-930 AS FG 40 | M107: 21005488 | N107: 0 | O107: Create code in MyProduct VIVA
A108: ORELLE PRO+ L18 3800-927 AS FG CW 40 | B108: LINELIGHT | C108: LINELIGHT Stable white (HO) | D108: 1810mm | E108: 3800 | F108: 927 | G108: AS | H108: Diffuse | I108: Cowl | J108: 40 | K108: LINELIGHT Stable white (HO)1810mm927DiffuseCowl | L108: ORELLE PRO+ L18 3800-927 AS FG CW 40 | M108: 21005489 | N108: 0 | O108: Create code in MyProduct VIVA
A109: ORELLE PRO+ L18 3800-927 AS FG 40 | B109: LINELIGHT | C109: LINELIGHT Stable white (HO) | D109: 1810mm | E109: 3800 | F109: 927 | G109: AS | H109: Diffuse | I109: No Cowl | J109: 40 | K109: LINELIGHT Stable white (HO)1810mm927DiffuseNo Cowl | L109: ORELLE PRO+ L18 3800-927 AS FG 40 | M109: 21005490 | N109: 0 | O109: Create code in MyProduct VIVA
A110: ORELLE PRO+ L18 3800-930 AS FG CW 40 | B110: LINELIGHT | C110: LINELIGHT Stable white (HO) | D110: 1810mm | E110: 3800 | F110: 930 | G110: AS | H110: Diffuse | I110: Cowl | J110: 40 | K110: LINELIGHT Stable white (HO)1810mm930DiffuseCowl | L110: ORELLE PRO+ L18 3800-930 AS FG CW 40 | M110: 21005491 | N110: 0 | O110: Create code in MyProduct VIVA
A111: ORELLE PRO+ L18 3800-930 AS FG 40 | B111: LINELIGHT | C111: LINELIGHT Stable white (HO) | D111: 1810mm | E111: 3800 | F111: 930 | G111: AS | H111: Diffuse | I111: No Cowl | J111: 40 | K111: LINELIGHT Stable white (HO)1810mm930DiffuseNo Cowl | L111: ORELLE PRO+ L18 3800-930 AS FG 40 | M111: 21005492 | N111: 0 | O111: Create code in MyProduct VIVA

Sheet Sheet4 (hidden)
A1: 21005393 | B1: ORELLE PRO L01 180-827 AS FG CW 40 | C1: 21005393
A2: 21005394 | B2: ORELLE PRO L01 180-827 AS FG 40 | C2: 21005394
A3: 21005395 | B3: ORELLE PRO L01 180-830 AS FG CW 40 | C3: 21005395
A4: 21005396 | B4: ORELLE PRO L01 180-830 AS FG 40 | C4: 21005396
A5: 21005397 | B5: ORELLE PRO L01 180-842 AS FG CW 40 | C5: 21005397
A6: 21005398 | B6: ORELLE PRO L01 180-842 AS FG 40 | C6: 21005398
A7: 21005399 | B7: ORELLE PRO L03 400-827 AS FG CW 40 | C7: 21005399
A8: 21005400 | B8: ORELLE PRO L03 400-827 AS FG 40 | C8: 21005400
A9: 21005401 | B9: ORELLE PRO L03 400-830 AS FG CW 40 | C9: 21005401
A10: 21005402 | B10: ORELLE PRO L03 400-830 AS FG 40 | C10: 21005402
A11: 21005403 | B11: ORELLE PRO L03 400-842 AS FG CW 40 | C11: 21005403
A12: 21005404 | B12: ORELLE PRO L03 400-842 AS FG 40 | C12: 21005404
A13: 21005405 | B13: ORELLE PRO L06 700-827 AS FG CW 40 | C13: 21005405
A14: 21005406 | B14: ORELLE PRO L06 700-827 AS FG 40 | C14: 21005406
A15: 21005407 | B15: ORELLE PRO L06 700-830 AS FG CW 40 | C15: 21005407
A16: 21005408 | B16: ORELLE PRO L06 700-830 AS FG 40 | C16: 21005408
A17: 21005409 | B17: ORELLE PRO L06 700-842 AS FG CW 40 | C17: 21005409
A18: 21005410 | B18: ORELLE PRO L06 700-842 AS FG 40 | C18: 21005410
A19: 21005411 | B19: ORELLE PRO L09 1000-827 AS FG CW 40 | C19: 21005411
A20: 21005412 | B20: ORELLE PRO L09 1000-827 AS FG 40 | C20: 21005412
A21: 21005413 | B21: ORELLE PRO L09 1000-830 AS FG CW 40 | C21: 21005413
A22: 21005414 | B22: ORELLE PRO L09 1000-830 AS FG 40 | C22: 21005414
A23: 21005415 | B23: ORELLE PRO L09 1000-842 AS FG CW 40 | C23: 21005415
A24: 21005416 | B24: ORELLE PRO L09 1000-842 AS FG 40 | C24: 21005416
A25: 21005417 | B25: ORELLE PRO L18 2200-827 AS FG CW 40 | C25: 21005417
A26: 21005418 | B26: ORELLE PRO L18 2200-827 AS FG 40 | C26: 21005418
A27: 21005419 | B27: ORELLE PRO L18 2200-830 AS FG CW 40 | C27: 21005419
A28: 21005420 | B28: ORELLE PRO L18 2200-830 AS FG 40 | C28: 21005420
A29: 21005421 | B29: ORELLE PRO L18 2200-842 AS FG CW 40 | C29: 21005421
A30: 21005422 | B30: ORELLE PRO L18 2200-842 AS FG 40 | C30: 21005422
A31: 21005423 | B31: ORELLE PRO L01 140-927 AS FG CW 40 | C31: 21005423
A32: 21005424 | B32: ORELLE PRO L01 140-927 AS FG 40 | C32: 21005424
A33: 21005425 | B33: ORELLE PRO L01 140-930 AS FG CW 40 | C33: 21005425
A34: 21005426 | B34: ORELLE PRO L01 140-930 AS FG 40 | C34: 21005426
A35: 21005427 | B35: ORELLE PRO L03 300-927 AS FG CW 40 | C35: 21005427
A36: 21005428 | B36: ORELLE PRO L03 300-927 AS FG 40 | C36: 21005428
A37: 21005429 | B37: ORELLE PRO L03 300-930 AS FG CW 40 | C37: 21005429
A38: 21005430 | B38: ORELLE PRO L03 300-930 AS FG 40 | C38: 21005430
A39: 21005431 | B39: ORELLE PRO L06 600-927 AS FG CW 40 | C39: 21005431
A40: 21005432 | B40: ORELLE PRO L06 600-927 AS FG 40 | C40: 21005432
A41: 21005433 | B41: ORELLE PRO L06 600-930 AS FG CW 40 | C41: 21005433
A42: 21005434 | B42: ORELLE PRO L06 600-930 AS FG 40 | C42: 21005434
A43: 21005435 | B43: ORELLE PRO L09 900-927 AS FG CW 40 | C43: 21005435
A44: 21005436 | B44: ORELLE PRO L09 900-927 AS FG 40 | C44: 21005436
A45: 21005437 | B45: ORELLE PRO L09 900-930 AS FG CW 40 | C45: 21005437
A46: 21005438 | B46: ORELLE PRO L09 900-930 AS FG 40 | C46: 21005438
A47: 21005439 | B47: ORELLE PRO L18 1800-927 AS FG CW 40 | C47: 21005439
A48: 21005440 | B48: ORELLE PRO L18 1800-927 AS FG 40 | C48: 21005440
A49: 21005441 | B49: ORELLE PRO L18 1800-930 AS FG CW 40 | C49: 21005441
A50: 21005442 | B50: ORELLE PRO L18 1800-930 AS FG 40 | C50: 21005442
A51: 21005443 | B51: ORELLE PRO+ L01 380-827 AS FG CW 40 | C51: 21005443
A52: 21005444 | B52: ORELLE PRO+ L01 380-827 AS FG 40 | C52: 21005444
A53: 21005445 | B53: ORELLE PRO+ L01 380-830 AS FG CW 40 | C53: 21005445
A54: 21005446 | B54: ORELLE PRO+ L01 380-830 AS FG 40 | C54: 21005446
A55: 21005447 | B55: ORELLE PRO+ L01 380-842 AS FG CW 40 | C55: 21005447
A56: 21005448 | B56: ORELLE PRO+ L01 380-842 AS FG 40 | C56: 21005448
A57: 21005449 | B57: ORELLE PRO+ L03 800-827 AS FG CW 40 | C57: 21005449
A58: 21005450 | B58: ORELLE PRO+ L03 800-827 AS FG 40 | C58: 21005450
A59: 21005451 | B59: ORELLE PRO+ L03 800-830 AS FG CW 40 | C59: 21005451
A60: 21005452 | B60: ORELLE PRO+ L03 800-830 AS FG 40 | C60: 21005452
A61: 21005453 | B61: ORELLE PRO+ L03 800-842 AS FG CW 40 | C61: 21005453
A62: 21005454 | B62: ORELLE PRO+ L03 800-842 AS FG 40 | C62: 21005454
A63: 21005455 | B63: ORELLE PRO+ L06 1600-827 AS FG CW 40 | C63: 21005455
A64: 21005456 | B64: ORELLE PRO+ L06 1600-827 AS FG 40 | C64: 21005456
A65: 21005457 | B65: ORELLE PRO+ L06 1600-830 AS FG CW 40 | C65: 21005457
A66: 21005458 | B66: ORELLE PRO+ L06 1600-830 AS FG 40 | C66: 21005458
A67: 21005459 | B67: ORELLE PRO+ L06 1600-842 AS FG CW 40 | C67: 21005459
A68: 21005460 | B68: ORELLE PRO+ L06 1600-842 AS FG 40 | C68: 21005460
A69: 21005461 | B69: ORELLE PRO+ L09 2400-827 AS FG CW 40 | C69: 21005461
A70: 21005462 | B70: ORELLE PRO+ L09 2400-827 AS FG 40 | C70: 21005462
A71: 21005463 | B71: ORELLE PRO+ L09 2400-830 AS FG CW 40 | C71: 21005463
A72: 21005464 | B72: ORELLE PRO+ L09 2400-830 AS FG 40 | C72: 21005464
A73: 21005465 | B73: ORELLE PRO+ L09 2400-842 AS FG CW 40 | C73: 21005465
A74: 21005466 | B74: ORELLE PRO+ L09 2400-842 AS FG 40 | C74: 21005466
A75: 21005467 | B75: ORELLE PRO+ L18 4600-827 AS FG CW 40 | C75: 21005467
A76: 21005468 | B76: ORELLE PRO+ L18 4600-827 AS FG 40 | C76: 21005468
A77: 21005469 | B77: ORELLE PRO+ L18 4600-830 AS FG CW 40 | C77: 21005469
A78: 21005470 | B78: ORELLE PRO+ L18 4600-830 AS FG 40 | C78: 21005470
A79: 21005471 | B79: ORELLE PRO+ L18 4600-842 AS FG CW 40 | C79: 21005471
A80: 21005472 | B80: ORELLE PRO+ L18 4600-842 AS FG 40 | C80: 21005472
A81: 21005473 | B81: ORELLE PRO+ L01 300-927 AS FG CW 40 | C81: 21005473
A82: 21005474 | B82: ORELLE PRO+ L01 300-927 AS FG 40 | C82: 21005474
A83: 21005475 | B83: ORELLE PRO+ L01 300-930 AS FG CW 40 | C83: 21005475
A84: 21005476 | B84: ORELLE PRO+ L01 300-930 AS FG 40 | C84: 21005476
A85: 21005477 | B85: ORELLE PRO+ L03 600-927 AS FG CW 40 | C85: 21005477
A86: 21005478 | B86: ORELLE PRO+ L03 600-927 AS FG 40 | C86: 21005478
A87: 21005479 | B87: ORELLE PRO+ L03 600-930 AS FG CW 40 | C87: 21005479
A88: 21005480 | B88: ORELLE PRO+ L03 600-930 AS FG 40 | C88: 21005480
A89: 21005481 | B89: ORELLE PRO+ L06 1200-927 AS FG CW 40 | C89: 21005481
A90: 21005482 | B90: ORELLE PRO+ L06 1200-927 AS FG 40 | C90: 21005482
A91: 21005483 | B91: ORELLE PRO+ L06 1200-930 AS FG CW 40 | C91: 21005483
A92: 21005484 | B92: ORELLE PRO+ L06 1200-930 AS FG 40 | C92: 21005484
A93: 21005485 | B93: ORELLE PRO+ L09 1900-927 AS FG CW 40 | C93: 21005485
A94: 21005486 | B94: ORELLE PRO+ L09 1900-927 AS FG 40 | C94: 21005486
A95: 21005487 | B95: ORELLE PRO+ L09 1900-930 AS FG CW 40 | C95: 21005487
A96: 21005488 | B96: ORELLE PRO+ L09 1900-930 AS FG 40 | C96: 21005488
A97: 21005489 | B97: ORELLE PRO+ L18 3800-927 AS FG CW 40 | C97: 21005489
A98: 21005490 | B98: ORELLE PRO+ L18 3800-927 AS FG 40 | C98: 21005490
A99: 21005491 | B99: ORELLE PRO+ L18 3800-930 AS FG CW 40 | C99: 21005491
A100: 21005492 | B100: ORELLE PRO+ L18 3800-930 AS FG 40 | C100: 21005492
A101: 21005493 | B101: ORELLE PRO L01 100-DW AS FG CW IP4 | C101: 21005493
A102: 21005494 | B102: ORELLE PRO L01 100-DW AS FG 40 | C102: 21005494
A103: 21005495 | B103: ORELLE PRO L03 200-DW AS FG CW IP4 | C103: 21005495
A104: 21005496 | B104: ORELLE PRO L03 200-DW AS FG 40 | C104: 21005496
A105: 21005497 | B105: ORELLE PRO L06 400-DW AS FG CW IP4 | C105: 21005497
A106: 21005498 | B106: ORELLE PRO L06 400-DW AS FG 40 | C106: 21005498
A107: 21005499 | B107: ORELLE PRO L09 600-DW AS FG CW IP4 | C107: 21005499
A108: 21005500 | B108: ORELLE PRO L09 600-DW AS FG 40 | C108: 21005500
A109: 21005501 | B109: ORELLE PRO L18 1300-DW AS GF CW IP4 | C109: 21005501
A110: 21005502 | B110: ORELLE PRO L18 1300-DW AS FG 40 | C110: 21005502

Sheet LINELIGHT Spec Builder
B4: Instructions for use: 1. Enter cove length. 2. Choose type of LINELIGHT from drop down list. 3. Choose dimming protocol from drop down list. 4. Choose fitting specific options (CRI/LED colour and whether a cowl is needed) from drop down lists.
B6: Cove Length (m) | C6: Cove Length 1 (m) | D6: 1.81 | E6: Number of fittings | F6: Length of 1800mm fittings | G6: Remaining m | H6: 0.91 | I6: Number of fittings | J6: Length of 900mm fittings | K6: Remaining m | L6: 0.61 | M6: Number of fittings | N6: Length of 600mm fittings | O6: Remaining m | P6: 0.31 | Q6: Number of fittings | R6: Length of 300mm fittings | S6: Remaining m | T6: 0.16 | U6: Number of fittings | V6: Length of 150mm fittings | W6: Remaining m | Y6: Type of LINELIGHT | AA6: Quantity of 1810mm | AC6: Quantity of 910mm | AD6: Quantity of 610mm | AF6: Quantity of 310mm | AG6: Quantity of 160mm | AI6: Total Length (m)
B7: 0 | C7: =B7 -> 0 | D7: =C7/D6 -> 0 | E7: =ROUNDDOWN(D7,0) -> 0 | F7: =E7*D6 -> 0 | G7: =C7-F7 -> 0 | H7: =G7/H6 -> 0 | I7: =ROUNDDOWN(H7,0) -> 0 | J7: =I7*H6 -> 0 | K7: =G7-J7 -> 0 | L7: =K7/L6 -> 0 | M7: =ROUNDDOWN(L7,0) -> 0 | N7: =M7*L6 -> 0 | O7: =K7-N7 -> 0 | P7: =O7/P6 -> 0 | Q7: =ROUNDDOWN(P7,0) -> 0 | R7: =Q7*P6 -> 0 | S7: =O7-R7 -> 0 | T7: =S7/T6 -> 0 | U7: =ROUNDDOWN(T7,0) -> 0 | V7: =U7*T6 -> 0 | W7: =S7-V7 -> 0 | Y7: Please select from list | Z7: =VLOOKUP(Y7,Sheet2!D20:E22,2,0) ->  | AA7: =E7 -> 0 | AC7: =I7 -> 0 | AD7: =M7 -> 0 | AF7: =Q7 -> 0 | AG7: =U7 -> 0 | AI7: =F7+J7+N7+R7+V7 -> 0
D8: 18 | E8: Number of drivers 350W | F8: Metre run by 350W | G8: Remaining m | H8: 11 | I8: Number of drivers 175W | J8: Metre run by 175W | K8: Remaining m | L8: 4 | M8: Number of drivers 70W
C9: LINELIGHT Stable white | D9: =C7/D8 -> 0 | E9: =ROUND(D9,0) -> 0 | F9: =E9*D8 -> 0 | G9: =C7-F9 -> 0 | H9: =IF(G9>0,G9/H8,"0") -> 0 | I9: =ROUND(H9,0) -> 0 | J9: =I9*H8 -> 0 | K9: =G9-J9 -> 0 | L9: =IF(K9>0,K9/L8,"0") -> 0 | M9: =ROUNDUP(L9,0) -> 0 | Y9: Dimming Protocol | AA9: Quantity of 320W drivers | AC9: Driver and SAP code | AD9: Quantity of 175W drivers | AF9: Driver and SAP code | AG9: Quantity of 70W drivers | AI9: Driver and SAP code
D10: 8 | E10: Number of drivers 350W | F10: Metre run by 350W | G10: Remaining m | H10: 4 | I10: Number of drivers 175W | J10: Metre run by 175W | K10: Remaining m | L10: 1.8 | M10: Number of drivers 70W | Y10: Choose dimming protocol | Z10: =VLOOKUP(Y7,Sheet2!D20:F22,3,0) ->  | AA10: =IF(Y7=C9,E9,IF(Y7=C11,E11,IF(Y7=C13,E13,"Please check options"))) -> Please check options | AB10: =CONCATENATE(Y7,"/",Y10,"/","320W") -> Please select from list/Choose dimming protocol/320W | AC10: =IFERROR(VLOOKUP(AB10,Sheet2!$H$2:$K$17,4,0),"Please check options") -> Please check options | AD10: =IF(Y7=C9,I9,IF(Y7=C11,I11,IF(Y7=C13,I13,"Please check options"))) -> Please check options | AE10: =CONCATENATE(Y7,"/",Y10,"/","175W") -> Please select from list/Choose dimming protocol/175W | AF10: =IFERROR(VLOOKUP(AE10,Sheet2!$H$2:$K$17,4,0),"Please check options") -> Please check options | AG10: =IF(Y7=C9,M9,IF(Y7=C11,M11,IF(Y7=C13,M13,"Please check options"))) -> Please check options | AH10: =CONCATENATE(Y7,"/",Y10,"/","70W") -> Please select from list/Choose dimming protocol/70W | AI10: =IFERROR(VLOOKUP(AH10,Sheet2!$H$2:$K$17,4,0),"Please check options") -> Please check options
C11: LINELIGHT Balanced white | D11: =C7/D10 -> 0 | E11: =ROUND(D11,0) -> 0 | F11: =E11*D10 -> 0 | G11: =C7-F11 -> 0 | H11: =IF(G11>0,G11/H10,"0") -> 0 | I11: =ROUND(H11,0) -> 0 | J11: =I11*H10 -> 0 | K11: =G11-J11 -> 0 | L11: =IF(K11>0,K11/L10,"0") -> 0 | M11: =ROUNDUP(L11,0) -> 0
D12: 6 | E12: Number of drivers 350W | F12: Metre run by 350W | G12: Remaining m | H12: 4 | I12: Number of drivers 175W | J12: Metre run by 175W | K12: Remaining m | L12: 1 | M12: Number of drivers 70W | Y12: Please select from list
C13: LINELIGHT Stable white (EB) | D13: =C7/D12 -> 0 | E13: =ROUND(D13,0) -> 0 | F13: =E13*D12 -> 0 | G13: =C7-F13 -> 0 | H13: =IF(G13>0,G13/H12,"0") -> 0 | I13: =ROUND(H13,0) -> 0 | J13: =I13*H12 -> 0 | K13: =G13-J13 -> 0 | L13: =IF(K13>0,K13/L12,"0") -> 0 | M13: =ROUNDUP(L13,0) -> 0
B15: Cove Length 2 (m) | C15: Cove Length 2 (m) | D15: 1.81 | E15: Number of fittings | F15: Length of 1800mm fittings | G15: Remaining m | H15: 0.91 | I15: Number of fittings | J15: Length of 900mm fittings | K15: Remaining m | L15: 0.61 | M15: Number of fittings | N15: Length of 600mm fittings | O15: Remaining m | P15: 0.31 | Q15: Number of fittings | R15: Length of 300mm fittings | S15: Remaining m | T15: 0.16 | U15: Number of fittings | V15: Length of 150mm fittings | W15: Remaining m | Y15: Type of Orelle | AA15: Quantity of 1800mm | AC15: Quantity of 900mm | AD15: Quantity of 600mm | AF15: Quantity of 300mm | AG15: Quantity of 150mm | AI15: Total Length (m)
B16: 0 | C16: =B16 -> 0 | D16: =C16/D15 -> 0 | E16: =ROUNDDOWN(D16,0) -> 0 | F16: =E16*D15 -> 0 | G16: =C16-F16 -> 0 | H16: =G16/H15 -> 0 | I16: =ROUNDDOWN(H16,0) -> 0 | J16: =I16*H15 -> 0 | K16: =G16-J16 -> 0 | L16: =K16/L15 -> 0 | M16: =ROUNDDOWN(L16,0) -> 0 | N16: =M16*L15 -> 0 | O16: =K16-N16 -> 0 | P16: =O16/P15 -> 0 | Q16: =ROUNDDOWN(P16,0) -> 0 | R16: =Q16*P15 -> 0 | S16: =O16-R16 -> 0 | T16: =S16/T15 -> 0 | U16: =ROUNDDOWN(T16,0) -> 0 | V16: =U16*T15 -> 0 | W16: =S16-V16 -> 0 | Y16: Orelle Pro Single Colour (SB) | AA16: =E16 -> 0 | AC16: =I16 -> 0 | AD16: =M16 -> 0 | AF16: =Q16 -> 0 | AG16: =U16 -> 0 | AI16: =F16+J16+N16+R16+V16 -> 0
D17: 18 | E17: Number of drivers 350W | F17: Metre run by 350W | G17: Remaining m | H17: 11 | I17: Number of drivers 175W | J17: Metre run by 175W | K17: Remaining m | L17: 4 | M17: Number of drivers 70W
C18: Orelle Pro Single Colour (SB) | D18: =C16/D17 -> 0 | E18: =ROUND(D18,0) -> 0 | F18: =E18*D17 -> 0 | G18: =C16-F18 -> 0 | H18: =IF(G18>0,G18/H17,"0") -> 0 | I18: =ROUND(H18,0) -> 0 | J18: =I18*H17 -> 0 | K18: =G18-J18 -> 0 | L18: =IF(K18>0,K18/L17,"0") -> 0 | M18: =ROUNDUP(L18,0) -> 0 | Y18: Dimming protocol | AA18: Quantity of 320W drivers | AC18: Driver and SAP code | AD18: Quantity of 175W drivers | AF18: Driver and SAP code | AG18: Quantity of 70W drivers | AI18: Driver and SAP code
D19: 8 | E19: Number of drivers 350W | F19: Metre run by 350W | G19: Remaining m | H19: 4 | I19: Number of drivers 175W | J19: Metre run by 175W | K19: Remaining m | L19: 1.8 | M19: Number of drivers 70W | Y19: Non-Dimmable/HF | AA19: =IF(Y16=C18,E18,IF(Y16=C20,E20,IF(Y16=C22,E22,"Please check options"))) -> 0 | AB19: =CONCATENATE(Y16,"/",Y19,"/","320W") -> Orelle Pro Single Colour (SB)/Non-Dimmable/HF/320W | AC19: =IFERROR(VLOOKUP(AB19,Sheet2!$H$2:$K$17,4,0),"Please check options") -> Please check options | AD19: =IF(Y16=C18,I18,IF(Y16=C20,I20,IF(Y16=C22,I22,"Please check options"))) -> 0 | AE19: =CONCATENATE(Y16,"/",Y19,"/","175W") -> Orelle Pro Single Colour (SB)/Non-Dimmable/HF/175W | AF19: =IFERROR(VLOOKUP(AE19,Sheet2!$H$2:$K$17,4,0),"Please check options") -> Please check options | AG19: =IF(Y16=C18,M18,IF(Y16=C20,M20,IF(Y16=C22,M22,"Please check options"))) -> 0 | AH19: =CONCATENATE(Y16,"/",Y19,"/","70W") -> Orelle Pro Single Colour (SB)/Non-Dimmable/HF/70W | AI19: =IFERROR(VLOOKUP(AH19,Sheet2!$H$2:$K$17,4,0),"Please check options") -> Please check options
C20: Orelle Pro Dynamic White | D20: =C16/D19 -> 0 | E20: =ROUND(D20,0) -> 0 | F20: =E20*D19 -> 0 | G20: =C16-F20 -> 0 | H20: =IF(G20>0,G20/H19,"0") -> 0 | I20: =ROUND(H20,0) -> 0 | J20: =I20*H19 -> 0 | K20: =G20-J20 -> 0 | L20: =IF(K20>0,K20/L19,"0") -> 0 | M20: =ROUNDUP(L20,0) -> 0
D21: 6 | E21: Number of drivers 350W | F21: Metre run by 350W | G21: Remaining m | H21: 4 | I21: Number of drivers 175W | J21: Metre run by 175W | K21: Remaining m | L21: 1 | M21: Number of drivers 70W
C22: Orelle Pro+ Single Colour (EB) | D22: =C16/D21 -> 0 | E22: =ROUND(D22,0) -> 0 | F22: =E22*D21 -> 0 | G22: =C16-F22 -> 0 | H22: =IF(G22>0,G22/H21,"0") -> 0 | I22: =ROUND(H22,0) -> 0 | J22: =I22*H21 -> 0 | K22: =G22-J22 -> 0 | L22: =IF(K22>0,K22/L21,"0") -> 0 | M22: =ROUNDUP(L22,0) -> 0
B24: Cove Length 3 (m) | C24: Cove Length 3 (m) | D24: 1.81 | E24: Number of fittings | F24: Length of 1800mm fittings | G24: Remaining m | H24: 0.91 | I24: Number of fittings | J24: Length of 900mm fittings | K24: Remaining m | L24: 0.61 | M24: Number of fittings | N24: Length of 600mm fittings | O24: Remaining m | P24: 0.31 | Q24: Number of fittings | R24: Length of 300mm fittings | S24: Remaining m | T24: 0.16 | U24: Number of fittings | V24: Length of 150mm fittings | W24: Remaining m | Y24: Type of Orelle | AA24: Quantity of 1800mm | AC24: Quantity of 900mm | AD24: Quantity of 600mm | AF24: Quantity of 300mm | AG24: Quantity of 150mm | AI24: Total Length (m)
B25: 0 | C25: =B25 -> 0 | D25: =C25/D24 -> 0 | E25: =ROUNDDOWN(D25,0) -> 0 | F25: =E25*D24 -> 0 | G25: =C25-F25 -> 0 | H25: =G25/H24 -> 0 | I25: =ROUNDDOWN(H25,0) -> 0 | J25: =I25*H24 -> 0 | K25: =G25-J25 -> 0 | L25: =K25/L24 -> 0 | M25: =ROUNDDOWN(L25,0) -> 0 | N25: =M25*L24 -> 0 | O25: =K25-N25 -> 0 | P25: =O25/P24 -> 0 | Q25: =ROUNDDOWN(P25,0) -> 0 | R25: =Q25*P24 -> 0 | S25: =O25-R25 -> 0 | T25: =S25/T24 -> 0 | U25: =ROUNDDOWN(T25,0) -> 0 | V25: =U25*T24 -> 0 | W25: =S25-V25 -> 0 | Y25: Orelle Pro Single Colour (SB) | AA25: =E25 -> 0 | AC25: =I25 -> 0 | AD25: =M25 -> 0 | AF25: =Q25 -> 0 | AG25: =U25 -> 0 | AI25: =F25+J25+N25+R25+V25 -> 0
D26: 18 | E26: Number of drivers 350W | F26: Metre run by 350W | G26: Remaining m | H26: 11 | I26: Number of drivers 175W | J26: Metre run by 175W | K26: Remaining m | L26: 4 | M26: Number of drivers 70W
C27: Orelle Pro Single Colour (SB) | D27: =C25/D26 -> 0 | E27: =ROUND(D27,0) -> 0 | F27: =E27*D26 -> 0 | G27: =C25-F27 -> 0 | H27: =IF(G27>0,G27/H26,"0") -> 0 | I27: =ROUND(H27,0) -> 0 | J27: =I27*H26 -> 0 | K27: =G27-J27 -> 0 | L27: =IF(K27>0,K27/L26,"0") -> 0 | M27: =ROUNDUP(L27,0) -> 0 | Y27: Dimming protocol | AA27: Quantity of 320W drivers | AC27: Driver and SAP code | AD27: Quantity of 175W drivers | AF27: Driver and SAP code | AG27: Quantity of 70W drivers | AI27: Driver and SAP code
D28: 8 | E28: Number of drivers 350W | F28: Metre run by 350W | G28: Remaining m | H28: 4 | I28: Number of drivers 175W | J28: Metre run by 175W | K28: Remaining m | L28: 1.8 | M28: Number of drivers 70W | Y28: Non-Dimmable/HF | AA28: =IF(Y25=C27,E27,IF(Y25=C29,E29,IF(Y25=C31,E31,"Please check options"))) -> 0 | AB28: =CONCATENATE(Y25,"/",Y28,"/","320W") -> Orelle Pro Single Colour (SB)/Non-Dimmable/HF/320W | AC28: =IFERROR(VLOOKUP(AB28,Sheet2!$H$2:$K$17,4,0),"Please check options") -> Please check options | AD28: =IF(Y25=C27,I27,IF(Y25=C29,I29,IF(Y25=C31,I31,"Please check options"))) -> 0 | AE28: =CONCATENATE(Y25,"/",Y28,"/","175W") -> Orelle Pro Single Colour (SB)/Non-Dimmable/HF/175W | AF28: =IFERROR(VLOOKUP(AE28,Sheet2!$H$2:$K$17,4,0),"Please check options") -> Please check options | AG28: =IF(Y25=C27,M27,IF(Y25=C29,M29,IF(Y25=C31,M31,"Please check options"))) -> 0 | AH28: =CONCATENATE(Y25,"/",Y28,"/","70W") -> Orelle Pro Single Colour (SB)/Non-Dimmable/HF/70W | AI28: =IFERROR(VLOOKUP(AH28,Sheet2!$H$2:$K$17,4,0),"Please check options") -> Please check options
C29: Orelle Pro Dynamic White | D29: =C25/D28 -> 0 | E29: =ROUND(D29,0) -> 0 | F29: =E29*D28 -> 0 | G29: =C25-F29 -> 0 | H29: =IF(G29>0,G29/H28,"0") -> 0 | I29: =ROUND(H29,0) -> 0 | J29: =I29*H28 -> 0 | K29: =G29-J29 -> 0 | L29: =IF(K29>0,K29/L28,"0") -> 0 | M29: =ROUNDUP(L29,0) -> 0
D30: 6 | E30: Number of drivers 350W | F30: Metre run by 350W | G30: Remaining m | H30: 4 | I30: Number of drivers 175W | J30: Metre run by 175W | K30: Remaining m | L30: 1 | M30: Number of drivers 70W
C31: Orelle Pro+ Single Colour (EB) | D31: =C25/D30 -> 0 | E31: =ROUND(D31,0) -> 0 | F31: =E31*D30 -> 0 | G31: =C25-F31 -> 0 | H31: =IF(G31>0,G31/H30,"0") -> 0 | I31: =ROUND(H31,0) -> 0 | J31: =I31*H30 -> 0 | K31: =G31-J31 -> 0 | L31: =IF(K31>0,K31/L30,"0") -> 0 | M31: =ROUNDUP(L31,0) -> 0
B33: Cove Length 4 (m) | C33: Cove Length 4 (m) | D33: 1.81 | E33: Number of fittings | F33: Length of 1800mm fittings | G33: Remaining m | H33: 0.91 | I33: Number of fittings | J33: Length of 900mm fittings | K33: Remaining m | L33: 0.61 | M33: Number of fittings | N33: Length of 600mm fittings | O33: Remaining m | P33: 0.31 | Q33: Number of fittings | R33: Length of 300mm fittings | S33: Remaining m | T33: 0.16 | U33: Number of fittings | V33: Length of 150mm fittings | W33: Remaining m | Y33: Type of Orelle | AA33: Quantity of 1800mm | AC33: Quantity of 900mm | AD33: Quantity of 600mm | AF33: Quantity of 300mm | AG33: Quantity of 150mm | AI33: Total Length (m)
B34: 0 | C34: =B34 -> 0 | D34: =C34/D33 -> 0 | E34: =ROUNDDOWN(D34,0) -> 0 | F34: =E34*D33 -> 0 | G34: =C34-F34 -> 0 | H34: =G34/H33 -> 0 | I34: =ROUNDDOWN(H34,0) -> 0 | J34: =I34*H33 -> 0 | K34: =G34-J34 -> 0 | L34: =K34/L33 -> 0 | M34: =ROUNDDOWN(L34,0) -> 0 | N34: =M34*L33 -> 0 | O34: =K34-N34 -> 0 | P34: =O34/P33 -> 0 | Q34: =ROUNDDOWN(P34,0) -> 0 | R34: =Q34*P33 -> 0 | S34: =O34-R34 -> 0 | T34: =S34/T33 -> 0 | U34: =ROUNDDOWN(T34,0) -> 0 | V34: =U34*T33 -> 0 | W34: =S34-V34 -> 0 | Y34: Orelle Pro Single Colour (SB) | AA34: =E34 -> 0 | AC34: =I34 -> 0 | AD34: =M34 -> 0 | AF34: =Q34 -> 0 | AG34: =U34 -> 0 | AI34: =F34+J34+N34+R34+V34 -> 0
D35: 18 | E35: Number of drivers 350W | F35: Metre run by 350W | G35: Remaining m | H35: 11 | I35: Number of drivers 175W | J35: Metre run by 175W | K35: Remaining m | L35: 4 | M35: Number of drivers 70W
C36: Orelle Pro Single Colour (SB) | D36: =C34/D35 -> 0 | E36: =ROUND(D36,0) -> 0 | F36: =E36*D35 -> 0 | G36: =C34-F36 -> 0 | H36: =IF(G36>0,G36/H35,"0") -> 0 | I36: =ROUND(H36,0) -> 0 | J36: =I36*H35 -> 0 | K36: =G36-J36 -> 0 | L36: =IF(K36>0,K36/L35,"0") -> 0 | M36: =ROUNDUP(L36,0) -> 0 | Y36: Dimming protocol | AA36: Quantity of 320W drivers | AC36: Driver and SAP code | AD36: Quantity of 175W drivers | AF36: Driver and SAP code | AG36: Quantity of 70W drivers | AI36: Driver and SAP code
D37: 8 | E37: Number of drivers 350W | F37: Metre run by 350W | G37: Remaining m | H37: 4 | I37: Number of drivers 175W | J37: Metre run by 175W | K37: Remaining m | L37: 1.8 | M37: Number of drivers 70W | Y37: Non-Dimmable/HF | AA37: =IF(Y34=C36,E36,IF(Y34=C38,E38,IF(Y34=C40,E40,"Please check options"))) -> 0 | AB37: =CONCATENATE(Y34,"/",Y37,"/","320W") -> Orelle Pro Single Colour (SB)/Non-Dimmable/HF/320W | AC37: =IFERROR(VLOOKUP(AB37,Sheet2!$H$2:$K$17,4,0),"Please check options") -> Please check options | AD37: =IF(Y34=C36,I36,IF(Y34=C38,I38,IF(Y34=C40,I40,"Please check options"))) -> 0 | AE37: =CONCATENATE(Y34,"/",Y37,"/","175W") -> Orelle Pro Single Colour (SB)/Non-Dimmable/HF/175W | AF37: =IFERROR(VLOOKUP(AE37,Sheet2!$H$2:$K$17,4,0),"Please check options") -> Please check options | AG37: =IF(Y34=C36,M36,IF(Y34=C38,M38,IF(Y34=C40,M40,"Please check options"))) -> 0 | AH37: =CONCATENATE(Y34,"/",Y37,"/","70W") -> Orelle Pro Single Colour (SB)/Non-Dimmable/HF/70W | AI37: =IFERROR(VLOOKUP(AH37,Sheet2!$H$2:$K$17,4,0),"Please check options") -> Please check options
C38: Orelle Pro Dynamic White | D38: =C34/D37 -> 0 | E38: =ROUND(D38,0) -> 0 | F38: =E38*D37 -> 0 | G38: =C34-F38 -> 0 | H38: =IF(G38>0,G38/H37,"0") -> 0 | I38: =ROUND(H38,0) -> 0 | J38: =I38*H37 -> 0 | K38: =G38-J38 -> 0 | L38: =IF(K38>0,K38/L37,"0") -> 0 | M38: =ROUNDUP(L38,0) -> 0 | AA38: Type | AB38: Length | AC38: CRI/LED Colour | AD38: Lens Type | AF38: Cowl | AJ38: Article Number
D39: 6 | E39: Number of drivers 350W | F39: Metre run by 350W | G39: Remaining m | H39: 4 | I39: Number of drivers 175W | J39: Metre run by 175W | K39: Remaining m | L39: 1 | M39: Number of drivers 70W | AA39: =IF($Y$7="Please select from list","Please select from list above",$Y$7) -> Please select from list above | AB39: 1810mm | AC39: Please select from list | AD39: Diffuse | AF39: Please select from list | AH39: =CONCATENATE(AA39,AB39,AC39,AD39,AF39) -> Please select from list above1810mmPlease select from listDiffusePlease select from list | AJ39: =IFERROR(VLOOKUP(AH39,Sheet3!K:O,5,0),"Please check options") -> Please check options
C40: Orelle Pro+ Single Colour (EB) | D40: =C34/D39 -> 0 | E40: =ROUND(D40,0) -> 0 | F40: =E40*D39 -> 0 | G40: =C34-F40 -> 0 | H40: =IF(G40>0,G40/H39,"0") -> 0 | I40: =ROUND(H40,0) -> 0 | J40: =I40*H39 -> 0 | K40: =G40-J40 -> 0 | L40: =IF(K40>0,K40/L39,"0") -> 0 | M40: =ROUNDUP(L40,0) -> 0 | AA40: =IF($Y$7="Please select from list","Please select from list above",$Y$7) -> Please select from list above | AB40: 910mm | AC40: =$AC$39 -> Please select from list | AD40: =$AD$39 -> Diffuse | AF40: =$AF$39 -> Please select from list | AH40: =CONCATENATE(AA40,AB40,AC40,AD40,AF40) -> Please select from list above910mmPlease select from listDiffusePlease select from list | AJ40: =IFERROR(VLOOKUP(AH40,Sheet3!K:O,5,0),"Please check options") -> Please check options
AA41: =IF($Y$7="Please select from list","Please select from list above",$Y$7) -> Please select from list above | AB41: 610mm | AC41: =$AC$39 -> Please select from list | AD41: =$AD$39 -> Diffuse | AF41: =$AF$39 -> Please select from list | AH41: =CONCATENATE(AA41,AB41,AC41,AD41,AF41) -> Please select from list above610mmPlease select from listDiffusePlease select from list | AJ41: =IFERROR(VLOOKUP(AH41,Sheet3!K:O,5,0),"Please check options") -> Please check options
AA42: =IF($Y$7="Please select from list","Please select from list above",$Y$7) -> Please select from list above | AB42: 310mm | AC42: Please select from list | AD42: =$AD$39 -> Diffuse | AF42: =$AF$39 -> Please select from list | AH42: =CONCATENATE(AA42,AB42,AC42,AD42,AF42) -> Please select from list above310mmPlease select from listDiffusePlease select from list | AJ42: =IFERROR(VLOOKUP(AH42,Sheet3!K:O,5,0),"Please check options") -> Please check options
AA43: =IF($Y$7="Please select from list","Please select from list above",$Y$7) -> Please select from list above | AB43: 160mm | AC43: Please select from list | AD43: =$AD$39 -> Diffuse | AF43: =$AF$39 -> Please select from list | AH43: =CONCATENATE(AA43,AB43,AC43,AD43,AF43) -> Please select from list above160mmPlease select from listDiffusePlease select from list | AJ43: =IFERROR(VLOOKUP(AH43,Sheet3!K:O,5,0),"Please check options") -> Please check options
AA45: Cove Summary | AD45: Quantity | AF45: Article Number
AA46: =IF(ISNUMBER(SEARCH("Please select from list",CONCATENATE(AA39,", ",AB39,", ",AC39,", ",AD39," Lens ",AF39))),"Please check options",CONCATENATE(AA39,", ",AB39,", ",AC39,", ",AD39," Lens, ",AF39)) -> Please check options | AD46: =AA7 -> 0 | AF46: =IF(AD46=0,"",(IF(AJ39="Please check options","",AJ39))) -> 
AA47: =IF(ISNUMBER(SEARCH("Please select from list",CONCATENATE(AA40,", ",AB40,", ",AC40,", ",AD40," Lens ",AF40))),"Please check options",CONCATENATE(AA40,", ",AB40,", ",AC40,", ",AD40," Lens, ",AF40)) -> Please check options | AD47: =AC7 -> 0 | AF47: =IF(AD47=0,"",(IF(AJ40="Please check options","",AJ40))) -> 
AA48: Please check options | AD48: =AD7 -> 0 | AF48: =IF(AD48=0,"",(IF(AJ41="Please check options","",AJ41))) -> 
AA49: =IF(ISNUMBER(SEARCH("Please select from list",CONCATENATE(AA42,", ",AB42,", ",AC42,", ",AD42," Lens ",AF42))),"Please check options",CONCATENATE(AA42,", ",AB42,", ",AC42,", ",AD42," Lens, ",AF42)) -> Please check options | AD49: =AF7 -> 0 | AF49: =IF(AD49=0,"",(IF(AJ42="Please check options","",AJ42))) -> 
AA50: Please check options | AD50: =AG7 -> 0 | AF50: =IF(AD50=0,"",(IF(AJ43="Please check options","",AJ43))) -> 
AA51: =IF(LEFT(AC10,LEN(AC10)-11)="Please ch","Please check options",LEFT(AC10,LEN(AC10)-11)) -> Please check options | AD51: =IF(AA10="Please check options","0",AA10) -> 0 | AF51: =IF(AD51=0,"",(IF(RIGHT(AC10,8)=" options","",RIGHT(AC10,8)))) -> 
AA52: =IF(LEFT(AF10,LEN(AF10)-11)="Please ch","Please check options",LEFT(AF10,LEN(AF10)-11)) -> Please check options | AD52: =IF(AD10="Please check options","0",AD10) -> 0 | AF52: =IF(AD52=0,"",(IF(RIGHT(AF10,8)=" options","",RIGHT(AF10,8)))) -> 
AA53: =IF(LEFT(AI10,LEN(AI10)-11)="Please ch","Please check options",LEFT(AI10,LEN(AI10)-11)) -> Please check options | AD53: =IF(AG10="Please check options","0",AG10) -> 0 | AF53: =IF(AD53=0,"",(IF(RIGHT(AI10,8)=" options","",RIGHT(AI10,8)))) -> 

Sheet LINELIGHT Code Finder
Y2: Instructions for use: 1. Choose type of LINELIGHT from drop down list. 2. Enter quantity of each length of fitting required. 3. Choose dimming protocol from drop down list. 4. Choose fitting specific options (CRI/LED colour and whether a cowl is needed) from drop down lists.
B9: Cove Length (m) | C9: Cove Length 1 (m) | D9: 1.81 | E9: Number of fittings | F9: Length of 1800mm fittings | H9: 0.91 | I9: Number of fittings | J9: Length of 900mm fittings | L9: 0.61 | M9: Number of fittings | N9: Length of 600mm fittings | P9: 0.31 | Q9: Number of fittings | R9: Length of 300mm fittings | T9: 0.16 | U9: Number of fittings | V9: Length of 150mm fittings | Y9: Type of LINELIGHT | AA9: Quantity of 1810mm | AC9: Quantity of 910mm | AD9: Quantity of 610mm | AF9: Quantity of 310mm | AG9: Quantity of 160mm | AI9: Total Length (m)
C10: =AI10 -> 0 | D10: =C10/D9 -> 0 | E10: =AA10 -> 0 | F10: =E10*D9 -> 0 | I10: =AC10 -> 0 | J10: =I10*H9 -> 0 | M10: =AD10 -> 0 | N10: =M10*L9 -> 0 | Q10: =AF10 -> 0 | R10: =Q10*P9 -> 0 | U10: =AG10 -> 0 | V10: =U10*T9 -> 0 | Y10: Please select from list | Z10: =VLOOKUP(Y10,Sheet2!D20:E22,2,0) ->  | AA10: 0 | AC10: 0 | AD10: 0 | AF10: 0 | AG10: 0 | AI10: =F10+J10+N10+R10+V10 -> 0
D11: 18 | E11: Number of drivers 350W | F11: Metre run by 350W | G11: Remaining m | H11: 11 | I11: Number of drivers 175W | J11: Metre run by 175W | K11: Remaining m | L11: 4 | M11: Number of drivers 70W
C12: LINELIGHT Stable white | D12: =C10/D11 -> 0 | E12: =ROUND(D12,0) -> 0 | F12: =E12*D11 -> 0 | G12: =C10-F12 -> 0 | H12: =IF(G12>0,G12/H11,"0") -> 0 | I12: =ROUND(H12,0) -> 0 | J12: =I12*H11 -> 0 | K12: =G12-J12 -> 0 | L12: =IF(K12>0,K12/L11,"0") -> 0 | M12: =ROUNDUP(L12,0) -> 0 | Y12: Dimming Protocol | AA12: Quantity of 320W drivers | AC12: Driver and SAP code | AD12: Quantity of 175W drivers | AF12: Driver and SAP code | AG12: Quantity of 70W drivers | AI12: Driver and SAP code
D13: 8 | E13: Number of drivers 350W | F13: Metre run by 350W | G13: Remaining m | H13: 4 | I13: Number of drivers 175W | J13: Metre run by 175W | K13: Remaining m | L13: 1.8 | M13: Number of drivers 70W | Y13: Choose dimming protocol | Z13: =VLOOKUP(Y10,Sheet2!D20:F22,3,0) ->  | AA13: =IF(Y10=C12,E12,IF(Y10=C14,E14,IF(Y10=C16,E16,"Please check options"))) -> Please check options | AB13: =CONCATENATE(Y10,"/",Y13,"/","320W") -> Please select from list/Choose dimming protocol/320W | AC13: =IFERROR(VLOOKUP(AB13,Sheet2!$H$2:$K$17,4,0),"Please check options") -> Please check options | AD13: =IF(Y10=C12,I12,IF(Y10=C14,I14,IF(Y10=C16,I16,"Please check options"))) -> Please check options | AE13: =CONCATENATE(Y10,"/",Y13,"/","175W") -> Please select from list/Choose dimming protocol/175W | AF13: =IFERROR(VLOOKUP(AE13,Sheet2!$H$2:$K$17,4,0),"Please check options") -> Please check options | AG13: =IF(Y10=C12,M12,IF(Y10=C14,M14,IF(Y10=C16,M16,"Please check options"))) -> Please check options | AH13: =CONCATENATE(Y10,"/",Y13,"/","70W") -> Please select from list/Choose dimming protocol/70W | AI13: =IFERROR(VLOOKUP(AH13,Sheet2!$H$2:$K$17,4,0),"Please check options") -> Please check options
C14: LINELIGHT Balanced white | D14: =C10/D13 -> 0 | E14: =ROUND(D14,0) -> 0 | F14: =E14*D13 -> 0 | G14: =C10-F14 -> 0 | H14: =IF(G14>0,G14/H13,"0") -> 0 | I14: =ROUND(H14,0) -> 0 | J14: =I14*H13 -> 0 | K14: =G14-J14 -> 0 | L14: =IF(K14>0,K14/L13,"0") -> 0 | M14: =ROUNDUP(L14,0) -> 0
D15: 6 | E15: Number of drivers 350W | F15: Metre run by 350W | G15: Remaining m | H15: 4 | I15: Number of drivers 175W | J15: Metre run by 175W | K15: Remaining m | L15: 1 | M15: Number of drivers 70W | Y15: Please select from list
C16: LINELIGHT Stable white (EB) | D16: =C10/D15 -> 0 | E16: =ROUND(D16,0) -> 0 | F16: =E16*D15 -> 0 | G16: =C10-F16 -> 0 | H16: =IF(G16>0,G16/H15,"0") -> 0 | I16: =ROUND(H16,0) -> 0 | J16: =I16*H15 -> 0 | K16: =G16-J16 -> 0 | L16: =IF(K16>0,K16/L15,"0") -> 0 | M16: =ROUNDUP(L16,0) -> 0
B18: Cove Length 2 (m) | C18: Cove Length 2 (m) | D18: 1.81 | E18: Number of fittings | F18: Length of 1800mm fittings | G18: Remaining m | H18: 0.91 | I18: Number of fittings | J18: Length of 900mm fittings | K18: Remaining m | L18: 0.61 | M18: Number of fittings | N18: Length of 600mm fittings | O18: Remaining m | P18: 0.31 | Q18: Number of fittings | R18: Length of 300mm fittings | S18: Remaining m | T18: 0.16 | U18: Number of fittings | V18: Length of 150mm fittings | W18: Remaining m | Y18: Type of Orelle | AA18: Quantity of 1800mm | AC18: Quantity of 900mm | AD18: Quantity of 600mm | AF18: Quantity of 300mm | AG18: Quantity of 150mm | AI18: Total Length (m)
B19: 0 | C19: =B19 -> 0 | D19: =C19/D18 -> 0 | E19: =ROUNDDOWN(D19,0) -> 0 | F19: =E19*D18 -> 0 | G19: =C19-F19 -> 0 | H19: =G19/H18 -> 0 | I19: =ROUNDDOWN(H19,0) -> 0 | J19: =I19*H18 -> 0 | K19: =G19-J19 -> 0 | L19: =K19/L18 -> 0 | M19: =ROUNDDOWN(L19,0) -> 0 | N19: =M19*L18 -> 0 | O19: =K19-N19 -> 0 | P19: =O19/P18 -> 0 | Q19: =ROUNDDOWN(P19,0) -> 0 | R19: =Q19*P18 -> 0 | S19: =O19-R19 -> 0 | T19: =S19/T18 -> 0 | U19: =ROUNDDOWN(T19,0) -> 0 | V19: =U19*T18 -> 0 | W19: =S19-V19 -> 0 | Y19: Orelle Pro Single Colour (SB) | AA19: =E19 -> 0 | AC19: =I19 -> 0 | AD19: =M19 -> 0 | AF19: =Q19 -> 0 | AG19: =U19 -> 0 | AI19: =F19+J19+N19+R19+V19 -> 0
D20: 18 | E20: Number of drivers 350W | F20: Metre run by 350W | G20: Remaining m | H20: 11 | I20: Number of drivers 175W | J20: Metre run by 175W | K20: Remaining m | L20: 4 | M20: Number of drivers 70W
C21: Orelle Pro Single Colour (SB) | D21: =C19/D20 -> 0 | E21: =ROUND(D21,0) -> 0 | F21: =E21*D20 -> 0 | G21: =C19-F21 -> 0 | H21: =IF(G21>0,G21/H20,"0") -> 0 | I21: =ROUND(H21,0) -> 0 | J21: =I21*H20 -> 0 | K21: =G21-J21 -> 0 | L21: =IF(K21>0,K21/L20,"0") -> 0 | M21: =ROUNDUP(L21,0) -> 0 | Y21: Dimming protocol | AA21: Quantity of 320W drivers | AC21: Driver and SAP code | AD21: Quantity of 175W drivers | AF21: Driver and SAP code | AG21: Quantity of 70W drivers | AI21: Driver and SAP code
D22: 8 | E22: Number of drivers 350W | F22: Metre run by 350W | G22: Remaining m | H22: 4 | I22: Number of drivers 175W | J22: Metre run by 175W | K22: Remaining m | L22: 1.8 | M22: Number of drivers 70W | Y22: Non-Dimmable/HF | AA22: =IF(Y19=C21,E21,IF(Y19=C23,E23,IF(Y19=C25,E25,"Please check options"))) -> 0 | AB22: =CONCATENATE(Y19,"/",Y22,"/","320W") -> Orelle Pro Single Colour (SB)/Non-Dimmable/HF/320W | AC22: =IFERROR(VLOOKUP(AB22,Sheet2!$H$2:$K$17,4,0),"Please check options") -> Please check options | AD22: =IF(Y19=C21,I21,IF(Y19=C23,I23,IF(Y19=C25,I25,"Please check options"))) -> 0 | AE22: =CONCATENATE(Y19,"/",Y22,"/","175W") -> Orelle Pro Single Colour (SB)/Non-Dimmable/HF/175W | AF22: =IFERROR(VLOOKUP(AE22,Sheet2!$H$2:$K$17,4,0),"Please check options") -> Please check options | AG22: =IF(Y19=C21,M21,IF(Y19=C23,M23,IF(Y19=C25,M25,"Please check options"))) -> 0 | AH22: =CONCATENATE(Y19,"/",Y22,"/","70W") -> Orelle Pro Single Colour (SB)/Non-Dimmable/HF/70W | AI22: =IFERROR(VLOOKUP(AH22,Sheet2!$H$2:$K$17,4,0),"Please check options") -> Please check options
C23: Orelle Pro Dynamic White | D23: =C19/D22 -> 0 | E23: =ROUND(D23,0) -> 0 | F23: =E23*D22 -> 0 | G23: =C19-F23 -> 0 | H23: =IF(G23>0,G23/H22,"0") -> 0 | I23: =ROUND(H23,0) -> 0 | J23: =I23*H22 -> 0 | K23: =G23-J23 -> 0 | L23: =IF(K23>0,K23/L22,"0") -> 0 | M23: =ROUNDUP(L23,0) -> 0
D24: 6 | E24: Number of drivers 350W | F24: Metre run by 350W | G24: Remaining m | H24: 4 | I24: Number of drivers 175W | J24: Metre run by 175W | K24: Remaining m | L24: 1 | M24: Number of drivers 70W
C25: Orelle Pro+ Single Colour (EB) | D25: =C19/D24 -> 0 | E25: =ROUND(D25,0) -> 0 | F25: =E25*D24 -> 0 | G25: =C19-F25 -> 0 | H25: =IF(G25>0,G25/H24,"0") -> 0 | I25: =ROUND(H25,0) -> 0 | J25: =I25*H24 -> 0 | K25: =G25-J25 -> 0 | L25: =IF(K25>0,K25/L24,"0") -> 0 | M25: =ROUNDUP(L25,0) -> 0
B27: Cove Length 3 (m) | C27: Cove Length 3 (m) | D27: 1.81 | E27: Number of fittings | F27: Length of 1800mm fittings | G27: Remaining m | H27: 0.91 | I27: Number of fittings | J27: Length of 900mm fittings | K27: Remaining m | L27: 0.61 | M27: Number of fittings | N27: Length of 600mm fittings | O27: Remaining m | P27: 0.31 | Q27: Number of fittings | R27: Length of 300mm fittings | S27: Remaining m | T27: 0.16 | U27: Number of fittings | V27: Length of 150mm fittings | W27: Remaining m | Y27: Type of Orelle | AA27: Quantity of 1800mm | AC27: Quantity of 900mm | AD27: Quantity of 600mm | AF27: Quantity of 300mm | AG27: Quantity of 150mm | AI27: Total Length (m)
B28: 0 | C28: =B28 -> 0 | D28: =C28/D27 -> 0 | E28: =ROUNDDOWN(D28,0) -> 0 | F28: =E28*D27 -> 0 | G28: =C28-F28 -> 0 | H28: =G28/H27 -> 0 | I28: =ROUNDDOWN(H28,0) -> 0 | J28: =I28*H27 -> 0 | K28: =G28-J28 -> 0 | L28: =K28/L27 -> 0 | M28: =ROUNDDOWN(L28,0) -> 0 | N28: =M28*L27 -> 0 | O28: =K28-N28 -> 0 | P28: =O28/P27 -> 0 | Q28: =ROUNDDOWN(P28,0) -> 0 | R28: =Q28*P27 -> 0 | S28: =O28-R28 -> 0 | T28: =S28/T27 -> 0 | U28: =ROUNDDOWN(T28,0) -> 0 | V28: =U28*T27 -> 0 | W28: =S28-V28 -> 0 | Y28: Orelle Pro Single Colour (SB) | AA28: =E28 -> 0 | AC28: =I28 -> 0 | AD28: =M28 -> 0 | AF28: =Q28 -> 0 | AG28: =U28 -> 0 | AI28: =F28+J28+N28+R28+V28 -> 0
D29: 18 | E29: Number of drivers 350W | F29: Metre run by 350W | G29: Remaining m | H29: 11 | I29: Number of drivers 175W | J29: Metre run by 175W | K29: Remaining m | L29: 4 | M29: Number of drivers 70W
C30: Orelle Pro Single Colour (SB) | D30: =C28/D29 -> 0 | E30: =ROUND(D30,0) -> 0 | F30: =E30*D29 -> 0 | G30: =C28-F30 -> 0 | H30: =IF(G30>0,G30/H29,"0") -> 0 | I30: =ROUND(H30,0) -> 0 | J30: =I30*H29 -> 0 | K30: =G30-J30 -> 0 | L30: =IF(K30>0,K30/L29,"0") -> 0 | M30: =ROUNDUP(L30,0) -> 0 | Y30: Dimming protocol | AA30: Quantity of 320W drivers | AC30: Driver and SAP code | AD30: Quantity of 175W drivers | AF30: Driver and SAP code | AG30: Quantity of 70W drivers | AI30: Driver and SAP code
D31: 8 | E31: Number of drivers 350W | F31: Metre run by 350W | G31: Remaining m | H31: 4 | I31: Number of drivers 175W | J31: Metre run by 175W | K31: Remaining m | L31: 1.8 | M31: Number of drivers 70W | Y31: Non-Dimmable/HF | AA31: =IF(Y28=C30,E30,IF(Y28=C32,E32,IF(Y28=C34,E34,"Please check options"))) -> 0 | AB31: =CONCATENATE(Y28,"/",Y31,"/","320W") -> Orelle Pro Single Colour (SB)/Non-Dimmable/HF/320W | AC31: =IFERROR(VLOOKUP(AB31,Sheet2!$H$2:$K$17,4,0),"Please check options") -> Please check options | AD31: =IF(Y28=C30,I30,IF(Y28=C32,I32,IF(Y28=C34,I34,"Please check options"))) -> 0 | AE31: =CONCATENATE(Y28,"/",Y31,"/","175W") -> Orelle Pro Single Colour (SB)/Non-Dimmable/HF/175W | AF31: =IFERROR(VLOOKUP(AE31,Sheet2!$H$2:$K$17,4,0),"Please check options") -> Please check options | AG31: =IF(Y28=C30,M30,IF(Y28=C32,M32,IF(Y28=C34,M34,"Please check options"))) -> 0 | AH31: =CONCATENATE(Y28,"/",Y31,"/","70W") -> Orelle Pro Single Colour (SB)/Non-Dimmable/HF/70W | AI31: =IFERROR(VLOOKUP(AH31,Sheet2!$H$2:$K$17,4,0),"Please check options") -> Please check options
C32: Orelle Pro Dynamic White | D32: =C28/D31 -> 0 | E32: =ROUND(D32,0) -> 0 | F32: =E32*D31 -> 0 | G32: =C28-F32 -> 0 | H32: =IF(G32>0,G32/H31,"0") -> 0 | I32: =ROUND(H32,0) -> 0 | J32: =I32*H31 -> 0 | K32: =G32-J32 -> 0 | L32: =IF(K32>0,K32/L31,"0") -> 0 | M32: =ROUNDUP(L32,0) -> 0
D33: 6 | E33: Number of drivers 350W | F33: Metre run by 350W | G33: Remaining m | H33: 4 | I33: Number of drivers 175W | J33: Metre run by 175W | K33: Remaining m | L33: 1 | M33: Number of drivers 70W
C34: Orelle Pro+ Single Colour (EB) | D34: =C28/D33 -> 0 | E34: =ROUND(D34,0) -> 0 | F34: =E34*D33 -> 0 | G34: =C28-F34 -> 0 | H34: =IF(G34>0,G34/H33,"0") -> 0 | I34: =ROUND(H34,0) -> 0 | J34: =I34*H33 -> 0 | K34: =G34-J34 -> 0 | L34: =IF(K34>0,K34/L33,"0") -> 0 | M34: =ROUNDUP(L34,0) -> 0
B36: Cove Length 4 (m) | C36: Cove Length 4 (m) | D36: 1.81 | E36: Number of fittings | F36: Length of 1800mm fittings | G36: Remaining m | H36: 0.91 | I36: Number of fittings | J36: Length of 900mm fittings | K36: Remaining m | L36: 0.61 | M36: Number of fittings | N36: Length of 600mm fittings | O36: Remaining m | P36: 0.31 | Q36: Number of fittings | R36: Length of 300mm fittings | S36: Remaining m | T36: 0.16 | U36: Number of fittings | V36: Length of 150mm fittings | W36: Remaining m | Y36: Type of Orelle | AA36: Quantity of 1800mm | AC36: Quantity of 900mm | AD36: Quantity of 600mm | AF36: Quantity of 300mm | AG36: Quantity of 150mm | AI36: Total Length (m)
B37: 0 | C37: =B37 -> 0 | D37: =C37/D36 -> 0 | E37: =ROUNDDOWN(D37,0) -> 0 | F37: =E37*D36 -> 0 | G37: =C37-F37 -> 0 | H37: =G37/H36 -> 0 | I37: =ROUNDDOWN(H37,0) -> 0 | J37: =I37*H36 -> 0 | K37: =G37-J37 -> 0 | L37: =K37/L36 -> 0 | M37: =ROUNDDOWN(L37,0) -> 0 | N37: =M37*L36 -> 0 | O37: =K37-N37 -> 0 | P37: =O37/P36 -> 0 | Q37: =ROUNDDOWN(P37,0) -> 0 | R37: =Q37*P36 -> 0 | S37: =O37-R37 -> 0 | T37: =S37/T36 -> 0 | U37: =ROUNDDOWN(T37,0) -> 0 | V37: =U37*T36 -> 0 | W37: =S37-V37 -> 0 | Y37: Orelle Pro Single Colour (SB) | AA37: =E37 -> 0 | AC37: =I37 -> 0 | AD37: =M37 -> 0 | AF37: =Q37 -> 0 | AG37: =U37 -> 0 | AI37: =F37+J37+N37+R37+V37 -> 0
D38: 18 | E38: Number of drivers 350W | F38: Metre run by 350W | G38: Remaining m | H38: 11 | I38: Number of drivers 175W | J38: Metre run by 175W | K38: Remaining m | L38: 4 | M38: Number of drivers 70W
C39: Orelle Pro Single Colour (SB) | D39: =C37/D38 -> 0 | E39: =ROUND(D39,0) -> 0 | F39: =E39*D38 -> 0 | G39: =C37-F39 -> 0 | H39: =IF(G39>0,G39/H38,"0") -> 0 | I39: =ROUND(H39,0) -> 0 | J39: =I39*H38 -> 0 | K39: =G39-J39 -> 0 | L39: =IF(K39>0,K39/L38,"0") -> 0 | M39: =ROUNDUP(L39,0) -> 0 | Y39: Dimming protocol | AA39: Quantity of 320W drivers | AC39: Driver and SAP code | AD39: Quantity of 175W drivers | AF39: Driver and SAP code | AG39: Quantity of 70W drivers | AI39: Driver and SAP code
D40: 8 | E40: Number of drivers 350W | F40: Metre run by 350W | G40: Remaining m | H40: 4 | I40: Number of drivers 175W | J40: Metre run by 175W | K40: Remaining m | L40: 1.8 | M40: Number of drivers 70W | Y40: Non-Dimmable/HF | AA40: =IF(Y37=C39,E39,IF(Y37=C41,E41,IF(Y37=C43,E43,"Please check options"))) -> 0 | AB40: =CONCATENATE(Y37,"/",Y40,"/","320W") -> Orelle Pro Single Colour (SB)/Non-Dimmable/HF/320W | AC40: =IFERROR(VLOOKUP(AB40,Sheet2!$H$2:$K$17,4,0),"Please check options") -> Please check options | AD40: =IF(Y37=C39,I39,IF(Y37=C41,I41,IF(Y37=C43,I43,"Please check options"))) -> 0 | AE40: =CONCATENATE(Y37,"/",Y40,"/","175W") -> Orelle Pro Single Colour (SB)/Non-Dimmable/HF/175W | AF40: =IFERROR(VLOOKUP(AE40,Sheet2!$H$2:$K$17,4,0),"Please check options") -> Please check options | AG40: =IF(Y37=C39,M39,IF(Y37=C41,M41,IF(Y37=C43,M43,"Please check options"))) -> 0 | AH40: =CONCATENATE(Y37,"/",Y40,"/","70W") -> Orelle Pro Single Colour (SB)/Non-Dimmable/HF/70W | AI40: =IFERROR(VLOOKUP(AH40,Sheet2!$H$2:$K$17,4,0),"Please check options") -> Please check options
C41: Orelle Pro Dynamic White | D41: =C37/D40 -> 0 | E41: =ROUND(D41,0) -> 0 | F41: =E41*D40 -> 0 | G41: =C37-F41 -> 0 | H41: =IF(G41>0,G41/H40,"0") -> 0 | I41: =ROUND(H41,0) -> 0 | J41: =I41*H40 -> 0 | K41: =G41-J41 -> 0 | L41: =IF(K41>0,K41/L40,"0") -> 0 | M41: =ROUNDUP(L41,0) -> 0 | AA41: Type | AB41: Length | AC41: CRI/LED Colour | AD41: Lens Type | AF41: Cowl | AJ41: Article Number
D42: 6 | E42: Number of drivers 350W | F42: Metre run by 350W | G42: Remaining m | H42: 4 | I42: Number of drivers 175W | J42: Metre run by 175W | K42: Remaining m | L42: 1 | M42: Number of drivers 70W | AA42: =IF($Y$10="Please select from list","Please select from list above",$Y$10) -> Please select from list above | AB42: 1810mm | AC42: Please select from list | AD42: Diffuse | AF42: Please select from list | AH42: =CONCATENATE(AA42,AB42,AC42,AD42,AF42) -> Please select from list above1810mmPlease select from listDiffusePlease select from list | AJ42: =IFERROR(VLOOKUP(AH42,Sheet3!K:O,5,0),"Please check options") -> Please check options
C43: Orelle Pro+ Single Colour (EB) | D43: =C37/D42 -> 0 | E43: =ROUND(D43,0) -> 0 | F43: =E43*D42 -> 0 | G43: =C37-F43 -> 0 | H43: =IF(G43>0,G43/H42,"0") -> 0 | I43: =ROUND(H43,0) -> 0 | J43: =I43*H42 -> 0 | K43: =G43-J43 -> 0 | L43: =IF(K43>0,K43/L42,"0") -> 0 | M43: =ROUNDUP(L43,0) -> 0 | AA43: =IF($Y$10="Please select from list","Please select from list above",$Y$10) -> Please select from list above | AB43: 910mm | AC43: =$AC$42 -> Please select from list | AD43: =$AD$42 -> Diffuse | AF43: =$AF$42 -> Please select from list | AH43: =CONCATENATE(AA43,AB43,AC43,AD43,AF43) -> Please select from list above910mmPlease select from listDiffusePlease select from list | AJ43: =IFERROR(VLOOKUP(AH43,Sheet3!K:O,5,0),"Please check options") -> Please check options
AA44: =IF($Y$10="Please select from list","Please select from list above",$Y$10) -> Please select from list above | AB44: 610mm | AC44: =$AC$42 -> Please select from list | AD44: =$AD$42 -> Diffuse | AF44: =$AF$42 -> Please select from list | AH44: =CONCATENATE(AA44,AB44,AC44,AD44,AF44) -> Please select from list above610mmPlease select from listDiffusePlease select from list | AJ44: =IFERROR(VLOOKUP(AH44,Sheet3!K:O,5,0),"Please check options") -> Please check options
AA45: =IF($Y$10="Please select from list","Please select from list above",$Y$10) -> Please select from list above | AB45: 310mm | AC45: Please select from list | AD45: =$AD$42 -> Diffuse | AF45: =$AF$42 -> Please select from list | AH45: =CONCATENATE(AA45,AB45,AC45,AD45,AF45) -> Please select from list above310mmPlease select from listDiffusePlease select from list | AJ45: =IFERROR(VLOOKUP(AH45,Sheet3!K:O,5,0),"Please check options") -> Please check options
AA46: =IF($Y$10="Please select from list","Please select from list above",$Y$10) -> Please select from list above | AB46: 160mm | AC46: Please select from list | AD46: =$AD$42 -> Diffuse | AF46: =$AF$42 -> Please select from list | AH46: =CONCATENATE(AA46,AB46,AC46,AD46,AF46) -> Please select from list above160mmPlease select from listDiffusePlease select from list | AJ46: =IFERROR(VLOOKUP(AH46,Sheet3!K:O,5,0),"Please check options") -> Please check options
AA48: Cove Summary | AD48: Quantity | AF48: Article Number
AA49: =IF(ISNUMBER(SEARCH("Please select from list",CONCATENATE(AA42,", ",AB42,", ",AC42,", ",AD42," Lens ",AF42))),"Please check options",CONCATENATE(AA42,", ",AB42,", ",AC42,", ",AD42," Lens, ",AF42)) -> Please check options | AD49: =AA10 -> 0 | AF49: =IF(AD49=0,"",(IF(AJ42="Please check options","",AJ42))) -> 
AA50: =IF(ISNUMBER(SEARCH("Please select from list",CONCATENATE(AA43,", ",AB43,", ",AC43,", ",AD43," Lens ",AF43))),"Please check options",CONCATENATE(AA43,", ",AB43,", ",AC43,", ",AD43," Lens, ",AF43)) -> Please check options | AD50: =AC10 -> 0 | AF50: =IF(AD50=0,"",(IF(AJ43="Please check options","",AJ43))) -> 
AA51: Please check options | AD51: =AD10 -> 0 | AF51: =IF(AD51=0,"",(IF(AJ44="Please check options","",AJ44))) -> 
AA52: =IF(ISNUMBER(SEARCH("Please select from list",CONCATENATE(AA45,", ",AB45,", ",AC45,", ",AD45," Lens ",AF45))),"Please check options",CONCATENATE(AA45,", ",AB45,", ",AC45,", ",AD45," Lens, ",AF45)) -> Please check options | AD52: =AF10 -> 0 | AF52: =IF(AD52=0,"",(IF(AJ45="Please check options","",AJ45))) -> 
AA53: Please check options | AD53: 0 | AF53: =IF(AD53=0,"",(IF(AJ46="Please check options","",AJ46))) -> 
AA54: =IF(LEFT(AC13,LEN(AC13)-11)="Please ch","Please check options",LEFT(AC13,LEN(AC13)-11)) -> Please check options | AD54: =IF(AA13="Please check options","0",AA13) -> 0 | AF54: =IF(AD54=0,"",(IF(RIGHT(AC13,8)=" options","",RIGHT(AC13,8)))) -> 
AA55: =IF(LEFT(AF13,LEN(AF13)-11)="Please ch","Please check options",LEFT(AF13,LEN(AF13)-11)) -> Please check options | AD55: =IF(AD13="Please check options","0",AD13) -> 0 | AF55: =IF(AD55=0,"",(IF(RIGHT(AF13,8)=" options","",RIGHT(AF13,8)))) -> 
AA56: =IF(LEFT(AI13,LEN(AI13)-11)="Please ch","Please check options",LEFT(AI13,LEN(AI13)-11)) -> Please check options | AD56: =IF(AG13="Please check options","0",AG13) -> 0 | AF56: =IF(AD56=0,"",(IF(RIGHT(AI13,8)=" options","",RIGHT(AI13,8)))) -> 

Sheet Orelle Spec Builder (2) (hidden)
B4: Instructions for use: 1. Enter cove length. 2. Choose type of Orelle from drop down list. 3. Choose dimming protocol from drop down list. 4. Choose fitting specific options (CRI/LED colour, Lens type and whether a cowl is needed) from drop down lists
B6: Cove Length (m) | C6: Cove Length 1 (m) | D6: 1.81 | E6: Number of fittings | F6: Length of 1800mm fittings | G6: Remaining m | H6: 0.91 | I6: Number of fittings | J6: Length of 900mm fittings | K6: Remaining m | L6: 0.61 | M6: Number of fittings | N6: Length of 600mm fittings | O6: Remaining m | P6: 0.31 | Q6: Number of fittings | R6: Length of 300mm fittings | S6: Remaining m | T6: 0.16 | U6: Number of fittings | V6: Length of 150mm fittings | W6: Remaining m | Y6: Type of Orelle | AA6: Quantity of 1800mm | AC6: Quantity of 900mm | AD6: Quantity of 600mm | AF6: Quantity of 300mm | AG6: Quantity of 150mm | AI6: Total Length (m)
B7: 0 | C7: =B7 -> 0 | D7: =C7/D6 -> 0 | E7: =ROUNDDOWN(D7,0) -> 0 | F7: =E7*D6 -> 0 | G7: =C7-F7 -> 0 | H7: =G7/H6 -> 0 | I7: =ROUNDDOWN(H7,0) -> 0 | J7: =I7*H6 -> 0 | K7: =G7-J7 -> 0 | L7: =K7/L6 -> 0 | M7: =ROUNDDOWN(L7,0) -> 0 | N7: =M7*L6 -> 0 | O7: =K7-N7 -> 0 | P7: =O7/P6 -> 0 | Q7: =ROUNDDOWN(P7,0) -> 0 | R7: =Q7*P6 -> 0 | S7: =O7-R7 -> 0 | T7: =S7/T6 -> 0 | U7: =ROUNDDOWN(T7,0) -> 0 | V7: =U7*T6 -> 0 | W7: =S7-V7 -> 0 | Y7: Please select from list | Z7: =VLOOKUP(Y7,Sheet2!D20:E22,2,0) ->  | AA7: =E7 -> 0 | AC7: =I7 -> 0 | AD7: =M7 -> 0 | AF7: =Q7 -> 0 | AG7: =U7 -> 0 | AI7: =F7+J7+N7+R7+V7 -> 0
D8: 18 | E8: Number of drivers 350W | F8: Metre run by 350W | G8: Remaining m | H8: 11 | I8: Number of drivers 175W | J8: Metre run by 175W | K8: Remaining m | L8: 4 | M8: Number of drivers 70W
C9: Orelle Pro Single Colour (SB) | D9: =C7/D8 -> 0 | E9: =ROUND(D9,0) -> 0 | F9: =E9*D8 -> 0 | G9: =C7-F9 -> 0 | H9: =IF(G9>0,G9/H8,"0") -> 0 | I9: =ROUND(H9,0) -> 0 | J9: =I9*H8 -> 0 | K9: =G9-J9 -> 0 | L9: =IF(K9>0,K9/L8,"0") -> 0 | M9: =ROUNDUP(L9,0) -> 0 | Y9: Dimming Protocol | AA9: Quantity of 320W drivers | AC9: Driver and SAP code | AD9: Quantity of 175W drivers | AF9: Driver and SAP code | AG9: Quantity of 70W drivers | AI9: Driver and SAP code
D10: 8 | E10: Number of drivers 350W | F10: Metre run by 350W | G10: Remaining m | H10: 4 | I10: Number of drivers 175W | J10: Metre run by 175W | K10: Remaining m | L10: 1.8 | M10: Number of drivers 70W | Y10: Choose dimming protocol | Z10: =VLOOKUP(Y7,Sheet2!D20:F22,3,0) ->  | AA10: =IF(Y7=C9,E9,IF(Y7=C11,E11,IF(Y7=C13,E13,"Please check options"))) -> Please check options | AB10: =CONCATENATE(Y7,"/",Y10,"/","320W") -> Please select from list/Choose dimming protocol/320W | AC10: =IFERROR(VLOOKUP(AB10,Sheet2!$H$2:$K$17,4,0),"Please check options") -> Please check options | AD10: =IF(Y7=C9,I9,IF(Y7=C11,I11,IF(Y7=C13,I13,"Please check options"))) -> Please check options | AE10: =CONCATENATE(Y7,"/",Y10,"/","175W") -> Please select from list/Choose dimming protocol/175W | AF10: =IFERROR(VLOOKUP(AE10,Sheet2!$H$2:$K$17,4,0),"Please check options") -> Please check options | AG10: =IF(Y7=C9,M9,IF(Y7=C11,M11,IF(Y7=C13,M13,"Please check options"))) -> Please check options | AH10: =CONCATENATE(Y7,"/",Y10,"/","70W") -> Please select from list/Choose dimming protocol/70W | AI10: =IFERROR(VLOOKUP(AH10,Sheet2!$H$2:$K$17,4,0),"Please check options") -> Please check options
C11: Orelle Pro Dynamic White | D11: =C7/D10 -> 0 | E11: =ROUND(D11,0) -> 0 | F11: =E11*D10 -> 0 | G11: =C7-F11 -> 0 | H11: =IF(G11>0,G11/H10,"0") -> 0 | I11: =ROUND(H11,0) -> 0 | J11: =I11*H10 -> 0 | K11: =G11-J11 -> 0 | L11: =IF(K11>0,K11/L10,"0") -> 0 | M11: =ROUNDUP(L11,0) -> 0
D12: 6 | E12: Number of drivers 350W | F12: Metre run by 350W | G12: Remaining m | H12: 4 | I12: Number of drivers 175W | J12: Metre run by 175W | K12: Remaining m | L12: 1 | M12: Number of drivers 70W | Y12: Please select from list
C13: Orelle Pro+ Single Colour (EB) | D13: =C7/D12 -> 0 | E13: =ROUND(D13,0) -> 0 | F13: =E13*D12 -> 0 | G13: =C7-F13 -> 0 | H13: =IF(G13>0,G13/H12,"0") -> 0 | I13: =ROUND(H13,0) -> 0 | J13: =I13*H12 -> 0 | K13: =G13-J13 -> 0 | L13: =IF(K13>0,K13/L12,"0") -> 0 | M13: =ROUNDUP(L13,0) -> 0
B15: Cove Length 2 (m) | C15: Cove Length 2 (m) | D15: 1.81 | E15: Number of fittings | F15: Length of 1800mm fittings | G15: Remaining m | H15: 0.91 | I15: Number of fittings | J15: Length of 900mm fittings | K15: Remaining m | L15: 0.61 | M15: Number of fittings | N15: Length of 600mm fittings | O15: Remaining m | P15: 0.31 | Q15: Number of fittings | R15: Length of 300mm fittings | S15: Remaining m | T15: 0.16 | U15: Number of fittings | V15: Length of 150mm fittings | W15: Remaining m | Y15: Type of Orelle | AA15: Quantity of 1800mm | AC15: Quantity of 900mm | AD15: Quantity of 600mm | AF15: Quantity of 300mm | AG15: Quantity of 150mm | AI15: Total Length (m)
B16: 0 | C16: =B16 -> 0 | D16: =C16/D15 -> 0 | E16: =ROUNDDOWN(D16,0) -> 0 | F16: =E16*D15 -> 0 | G16: =C16-F16 -> 0 | H16: =G16/H15 -> 0 | I16: =ROUNDDOWN(H16,0) -> 0 | J16: =I16*H15 -> 0 | K16: =G16-J16 -> 0 | L16: =K16/L15 -> 0 | M16: =ROUNDDOWN(L16,0) -> 0 | N16: =M16*L15 -> 0 | O16: =K16-N16 -> 0 | P16: =O16/P15 -> 0 | Q16: =ROUNDDOWN(P16,0) -> 0 | R16: =Q16*P15 -> 0 | S16: =O16-R16 -> 0 | T16: =S16/T15 -> 0 | U16: =ROUNDDOWN(T16,0) -> 0 | V16: =U16*T15 -> 0 | W16: =S16-V16 -> 0 | Y16: Orelle Pro Single Colour (SB) | AA16: =E16 -> 0 | AC16: =I16 -> 0 | AD16: =M16 -> 0 | AF16: =Q16 -> 0 | AG16: =U16 -> 0 | AI16: =F16+J16+N16+R16+V16 -> 0
D17: 18 | E17: Number of drivers 350W | F17: Metre run by 350W | G17: Remaining m | H17: 11 | I17: Number of drivers 175W | J17: Metre run by 175W | K17: Remaining m | L17: 4 | M17: Number of drivers 70W
C18: Orelle Pro Single Colour (SB) | D18: =C16/D17 -> 0 | E18: =ROUND(D18,0) -> 0 | F18: =E18*D17 -> 0 | G18: =C16-F18 -> 0 | H18: =IF(G18>0,G18/H17,"0") -> 0 | I18: =ROUND(H18,0) -> 0 | J18: =I18*H17 -> 0 | K18: =G18-J18 -> 0 | L18: =IF(K18>0,K18/L17,"0") -> 0 | M18: =ROUNDUP(L18,0) -> 0 | Y18: Dimming protocol | AA18: Quantity of 320W drivers | AC18: Driver and SAP code | AD18: Quantity of 175W drivers | AF18: Driver and SAP code | AG18: Quantity of 70W drivers | AI18: Driver and SAP code
D19: 8 | E19: Number of drivers 350W | F19: Metre run by 350W | G19: Remaining m | H19: 4 | I19: Number of drivers 175W | J19: Metre run by 175W | K19: Remaining m | L19: 1.8 | M19: Number of drivers 70W | Y19: Non-Dimmable/HF | AA19: =IF(Y16=C18,E18,IF(Y16=C20,E20,IF(Y16=C22,E22,"Please check options"))) -> 0 | AB19: =CONCATENATE(Y16,"/",Y19,"/","320W") -> Orelle Pro Single Colour (SB)/Non-Dimmable/HF/320W | AC19: =IFERROR(VLOOKUP(AB19,Sheet2!$H$2:$K$17,4,0),"Please check options") -> Please check options | AD19: =IF(Y16=C18,I18,IF(Y16=C20,I20,IF(Y16=C22,I22,"Please check options"))) -> 0 | AE19: =CONCATENATE(Y16,"/",Y19,"/","175W") -> Orelle Pro Single Colour (SB)/Non-Dimmable/HF/175W | AF19: =IFERROR(VLOOKUP(AE19,Sheet2!$H$2:$K$17,4,0),"Please check options") -> Please check options | AG19: =IF(Y16=C18,M18,IF(Y16=C20,M20,IF(Y16=C22,M22,"Please check options"))) -> 0 | AH19: =CONCATENATE(Y16,"/",Y19,"/","70W") -> Orelle Pro Single Colour (SB)/Non-Dimmable/HF/70W | AI19: =IFERROR(VLOOKUP(AH19,Sheet2!$H$2:$K$17,4,0),"Please check options") -> Please check options
C20: Orelle Pro Dynamic White | D20: =C16/D19 -> 0 | E20: =ROUND(D20,0) -> 0 | F20: =E20*D19 -> 0 | G20: =C16-F20 -> 0 | H20: =IF(G20>0,G20/H19,"0") -> 0 | I20: =ROUND(H20,0) -> 0 | J20: =I20*H19 -> 0 | K20: =G20-J20 -> 0 | L20: =IF(K20>0,K20/L19,"0") -> 0 | M20: =ROUNDUP(L20,0) -> 0
D21: 6 | E21: Number of drivers 350W | F21: Metre run by 350W | G21: Remaining m | H21: 4 | I21: Number of drivers 175W | J21: Metre run by 175W | K21: Remaining m | L21: 1 | M21: Number of drivers 70W
C22: Orelle Pro+ Single Colour (EB) | D22: =C16/D21 -> 0 | E22: =ROUND(D22,0) -> 0 | F22: =E22*D21 -> 0 | G22: =C16-F22 -> 0 | H22: =IF(G22>0,G22/H21,"0") -> 0 | I22: =ROUND(H22,0) -> 0 | J22: =I22*H21 -> 0 | K22: =G22-J22 -> 0 | L22: =IF(K22>0,K22/L21,"0") -> 0 | M22: =ROUNDUP(L22,0) -> 0
B24: Cove Length 3 (m) | C24: Cove Length 3 (m) | D24: 1.81 | E24: Number of fittings | F24: Length of 1800mm fittings | G24: Remaining m | H24: 0.91 | I24: Number of fittings | J24: Length of 900mm fittings | K24: Remaining m | L24: 0.61 | M24: Number of fittings | N24: Length of 600mm fittings | O24: Remaining m | P24: 0.31 | Q24: Number of fittings | R24: Length of 300mm fittings | S24: Remaining m | T24: 0.16 | U24: Number of fittings | V24: Length of 150mm fittings | W24: Remaining m | Y24: Type of Orelle | AA24: Quantity of 1800mm | AC24: Quantity of 900mm | AD24: Quantity of 600mm | AF24: Quantity of 300mm | AG24: Quantity of 150mm | AI24: Total Length (m)
B25: 0 | C25: =B25 -> 0 | D25: =C25/D24 -> 0 | E25: =ROUNDDOWN(D25,0) -> 0 | F25: =E25*D24 -> 0 | G25: =C25-F25 -> 0 | H25: =G25/H24 -> 0 | I25: =ROUNDDOWN(H25,0) -> 0 | J25: =I25*H24 -> 0 | K25: =G25-J25 -> 0 | L25: =K25/L24 -> 0 | M25: =ROUNDDOWN(L25,0) -> 0 | N25: =M25*L24 -> 0 | O25: =K25-N25 -> 0 | P25: =O25/P24 -> 0 | Q25: =ROUNDDOWN(P25,0) -> 0 | R25: =Q25*P24 -> 0 | S25: =O25-R25 -> 0 | T25: =S25/T24 -> 0 | U25: =ROUNDDOWN(T25,0) -> 0 | V25: =U25*T24 -> 0 | W25: =S25-V25 -> 0 | Y25: Orelle Pro Single Colour (SB) | AA25: =E25 -> 0 | AC25: =I25 -> 0 | AD25: =M25 -> 0 | AF25: =Q25 -> 0 | AG25: =U25 -> 0 | AI25: =F25+J25+N25+R25+V25 -> 0
D26: 18 | E26: Number of drivers 350W | F26: Metre run by 350W | G26: Remaining m | H26: 11 | I26: Number of drivers 175W | J26: Metre run by 175W | K26: Remaining m | L26: 4 | M26: Number of drivers 70W
C27: Orelle Pro Single Colour (SB) | D27: =C25/D26 -> 0 | E27: =ROUND(D27,0) -> 0 | F27: =E27*D26 -> 0 | G27: =C25-F27 -> 0 | H27: =IF(G27>0,G27/H26,"0") -> 0 | I27: =ROUND(H27,0) -> 0 | J27: =I27*H26 -> 0 | K27: =G27-J27 -> 0 | L27: =IF(K27>0,K27/L26,"0") -> 0 | M27: =ROUNDUP(L27,0) -> 0 | Y27: Dimming protocol | AA27: Quantity of 320W drivers | AC27: Driver and SAP code | AD27: Quantity of 175W drivers | AF27: Driver and SAP code | AG27: Quantity of 70W drivers | AI27: Driver and SAP code
D28: 8 | E28: Number of drivers 350W | F28: Metre run by 350W | G28: Remaining m | H28: 4 | I28: Number of drivers 175W | J28: Metre run by 175W | K28: Remaining m | L28: 1.8 | M28: Number of drivers 70W | Y28: Non-Dimmable/HF | AA28: =IF(Y25=C27,E27,IF(Y25=C29,E29,IF(Y25=C31,E31,"Please check options"))) -> 0 | AB28: =CONCATENATE(Y25,"/",Y28,"/","320W") -> Orelle Pro Single Colour (SB)/Non-Dimmable/HF/320W | AC28: =IFERROR(VLOOKUP(AB28,Sheet2!$H$2:$K$17,4,0),"Please check options") -> Please check options | AD28: =IF(Y25=C27,I27,IF(Y25=C29,I29,IF(Y25=C31,I31,"Please check options"))) -> 0 | AE28: =CONCATENATE(Y25,"/",Y28,"/","175W") -> Orelle Pro Single Colour (SB)/Non-Dimmable/HF/175W | AF28: =IFERROR(VLOOKUP(AE28,Sheet2!$H$2:$K$17,4,0),"Please check options") -> Please check options | AG28: =IF(Y25=C27,M27,IF(Y25=C29,M29,IF(Y25=C31,M31,"Please check options"))) -> 0 | AH28: =CONCATENATE(Y25,"/",Y28,"/","70W") -> Orelle Pro Single Colour (SB)/Non-Dimmable/HF/70W | AI28: =IFERROR(VLOOKUP(AH28,Sheet2!$H$2:$K$17,4,0),"Please check options") -> Please check options
C29: Orelle Pro Dynamic White | D29: =C25/D28 -> 0 | E29: =ROUND(D29,0) -> 0 | F29: =E29*D28 -> 0 | G29: =C25-F29 -> 0 | H29: =IF(G29>0,G29/H28,"0") -> 0 | I29: =ROUND(H29,0) -> 0 | J29: =I29*H28 -> 0 | K29: =G29-J29 -> 0 | L29: =IF(K29>0,K29/L28,"0") -> 0 | M29: =ROUNDUP(L29,0) -> 0
D30: 6 | E30: Number of drivers 350W | F30: Metre run by 350W | G30: Remaining m | H30: 4 | I30: Number of drivers 175W | J30: Metre run by 175W | K30: Remaining m | L30: 1 | M30: Number of drivers 70W
C31: Orelle Pro+ Single Colour (EB) | D31: =C25/D30 -> 0 | E31: =ROUND(D31,0) -> 0 | F31: =E31*D30 -> 0 | G31: =C25-F31 -> 0 | H31: =IF(G31>0,G31/H30,"0") -> 0 | I31: =ROUND(H31,0) -> 0 | J31: =I31*H30 -> 0 | K31: =G31-J31 -> 0 | L31: =IF(K31>0,K31/L30,"0") -> 0 | M31: =ROUNDUP(L31,0) -> 0
B33: Cove Length 4 (m) | C33: Cove Length 4 (m) | D33: 1.81 | E33: Number of fittings | F33: Length of 1800mm fittings | G33: Remaining m | H33: 0.91 | I33: Number of fittings | J33: Length of 900mm fittings | K33: Remaining m | L33: 0.61 | M33: Number of fittings | N33: Length of 600mm fittings | O33: Remaining m | P33: 0.31 | Q33: Number of fittings | R33: Length of 300mm fittings | S33: Remaining m | T33: 0.16 | U33: Number of fittings | V33: Length of 150mm fittings | W33: Remaining m | Y33: Type of Orelle | AA33: Quantity of 1800mm | AC33: Quantity of 900mm | AD33: Quantity of 600mm | AF33: Quantity of 300mm | AG33: Quantity of 150mm | AI33: Total Length (m)
B34: 0 | C34: =B34 -> 0 | D34: =C34/D33 -> 0 | E34: =ROUNDDOWN(D34,0) -> 0 | F34: =E34*D33 -> 0 | G34: =C34-F34 -> 0 | H34: =G34/H33 -> 0 | I34: =ROUNDDOWN(H34,0) -> 0 | J34: =I34*H33 -> 0 | K34: =G34-J34 -> 0 | L34: =K34/L33 -> 0 | M34: =ROUNDDOWN(L34,0) -> 0 | N34: =M34*L33 -> 0 | O34: =K34-N34 -> 0 | P34: =O34/P33 -> 0 | Q34: =ROUNDDOWN(P34,0) -> 0 | R34: =Q34*P33 -> 0 | S34: =O34-R34 -> 0 | T34: =S34/T33 -> 0 | U34: =ROUNDDOWN(T34,0) -> 0 | V34: =U34*T33 -> 0 | W34: =S34-V34 -> 0 | Y34: Orelle Pro Single Colour (SB) | AA34: =E34 -> 0 | AC34: =I34 -> 0 | AD34: =M34 -> 0 | AF34: =Q34 -> 0 | AG34: =U34 -> 0 | AI34: =F34+J34+N34+R34+V34 -> 0
D35: 18 | E35: Number of drivers 350W | F35: Metre run by 350W | G35: Remaining m | H35: 11 | I35: Number of drivers 175W | J35: Metre run by 175W | K35: Remaining m | L35: 4 | M35: Number of drivers 70W
C36: Orelle Pro Single Colour (SB) | D36: =C34/D35 -> 0 | E36: =ROUND(D36,0) -> 0 | F36: =E36*D35 -> 0 | G36: =C34-F36 -> 0 | H36: =IF(G36>0,G36/H35,"0") -> 0 | I36: =ROUND(H36,0) -> 0 | J36: =I36*H35 -> 0 | K36: =G36-J36 -> 0 | L36: =IF(K36>0,K36/L35,"0") -> 0 | M36: =ROUNDUP(L36,0) -> 0 | Y36: Dimming protocol | AA36: Quantity of 320W drivers | AC36: Driver and SAP code | AD36: Quantity of 175W drivers | AF36: Driver and SAP code | AG36: Quantity of 70W drivers | AI36: Driver and SAP code
D37: 8 | E37: Number of drivers 350W | F37: Metre run by 350W | G37: Remaining m | H37: 4 | I37: Number of drivers 175W | J37: Metre run by 175W | K37: Remaining m | L37: 1.8 | M37: Number of drivers 70W | Y37: Non-Dimmable/HF | AA37: =IF(Y34=C36,E36,IF(Y34=C38,E38,IF(Y34=C40,E40,"Please check options"))) -> 0 | AB37: =CONCATENATE(Y34,"/",Y37,"/","320W") -> Orelle Pro Single Colour (SB)/Non-Dimmable/HF/320W | AC37: =IFERROR(VLOOKUP(AB37,Sheet2!$H$2:$K$17,4,0),"Please check options") -> Please check options | AD37: =IF(Y34=C36,I36,IF(Y34=C38,I38,IF(Y34=C40,I40,"Please check options"))) -> 0 | AE37: =CONCATENATE(Y34,"/",Y37,"/","175W") -> Orelle Pro Single Colour (SB)/Non-Dimmable/HF/175W | AF37: =IFERROR(VLOOKUP(AE37,Sheet2!$H$2:$K$17,4,0),"Please check options") -> Please check options | AG37: =IF(Y34=C36,M36,IF(Y34=C38,M38,IF(Y34=C40,M40,"Please check options"))) -> 0 | AH37: =CONCATENATE(Y34,"/",Y37,"/","70W") -> Orelle Pro Single Colour (SB)/Non-Dimmable/HF/70W | AI37: =IFERROR(VLOOKUP(AH37,Sheet2!$H$2:$K$17,4,0),"Please check options") -> Please check options
C38: Orelle Pro Dynamic White | D38: =C34/D37 -> 0 | E38: =ROUND(D38,0) -> 0 | F38: =E38*D37 -> 0 | G38: =C34-F38 -> 0 | H38: =IF(G38>0,G38/H37,"0") -> 0 | I38: =ROUND(H38,0) -> 0 | J38: =I38*H37 -> 0 | K38: =G38-J38 -> 0 | L38: =IF(K38>0,K38/L37,"0") -> 0 | M38: =ROUNDUP(L38,0) -> 0 | AA38: Type | AB38: Length | AC38: CRI/LED Colour | AD38: Lens Type | AF38: Cowl | AJ38: Article Number
D39: 6 | E39: Number of drivers 350W | F39: Metre run by 350W | G39: Remaining m | H39: 4 | I39: Number of drivers 175W | J39: Metre run by 175W | K39: Remaining m | L39: 1 | M39: Number of drivers 70W | AA39: =IF($Y$7="Please select from list","Please select from list above",$Y$7) -> Please select from list above | AB39: 1800mm | AC39: Please select from list | AD39: Please select from list | AF39: Please select from list | AH39: =CONCATENATE(AA39,AB39,AC39,AD39,AF39) -> Please select from list above1800mmPlease select from listPlease select from listPlease select from list | AJ39: =IFERROR(VLOOKUP(AH39,Sheet3!K:M,3,0),"Please check options") -> Please check options
C40: Orelle Pro+ Single Colour (EB) | D40: =C34/D39 -> 0 | E40: =ROUND(D40,0) -> 0 | F40: =E40*D39 -> 0 | G40: =C34-F40 -> 0 | H40: =IF(G40>0,G40/H39,"0") -> 0 | I40: =ROUND(H40,0) -> 0 | J40: =I40*H39 -> 0 | K40: =G40-J40 -> 0 | L40: =IF(K40>0,K40/L39,"0") -> 0 | M40: =ROUNDUP(L40,0) -> 0 | AA40: =IF($Y$7="Please select from list","Please select from list above",$Y$7) -> Please select from list above | AB40: 900mm | AC40: =$AC$39 -> Please select from list | AD40: =$AD$39 -> Please select from list | AF40: =$AF$39 -> Please select from list | AH40: =CONCATENATE(AA40,AB40,AC40,AD40,AF40) -> Please select from list above900mmPlease select from listPlease select from listPlease select from list | AJ40: =IFERROR(VLOOKUP(AH40,Sheet3!K:M,3,0),"Please check options") -> Please check options
AA41: =IF($Y$7="Please select from list","Please select from list above",$Y$7) -> Please select from list above | AB41: 600mm | AC41: =$AC$39 -> Please select from list | AD41: =$AD$39 -> Please select from list | AF41: =$AF$39 -> Please select from list | AH41: =CONCATENATE(AA41,AB41,AC41,AD41,AF41) -> Please select from list above600mmPlease select from listPlease select from listPlease select from list | AJ41: =IFERROR(VLOOKUP(AH41,Sheet3!K:M,3,0),"Please check options") -> Please check options
AA42: =IF($Y$7="Please select from list","Please select from list above",$Y$7) -> Please select from list above | AB42: 300mm | AC42: Please select from list | AD42: =$AD$39 -> Please select from list | AF42: =$AF$39 -> Please select from list | AH42: =CONCATENATE(AA42,AB42,AC42,AD42,AF42) -> Please select from list above300mmPlease select from listPlease select from listPlease select from list | AJ42: =IFERROR(VLOOKUP(AH42,Sheet3!K:M,3,0),"Please check options") -> Please check options
AA43: =IF($Y$7="Please select from list","Please select from list above",$Y$7) -> Please select from list above | AB43: 150mm | AC43: Please select from list | AD43: =$AD$39 -> Please select from list | AF43: =$AF$39 -> Please select from list | AH43: =CONCATENATE(AA43,AB43,AC43,AD43,AF43) -> Please select from list above150mmPlease select from listPlease select from listPlease select from list | AJ43: =IFERROR(VLOOKUP(AH43,Sheet3!K:M,3,0),"Please check options") -> Please check options
AA45: Cove Summary | AD45: Quantity | AF45: Article Number
AA46: =IF(ISNUMBER(SEARCH("Please select from list",CONCATENATE(AA39,", ",AB39,", ",AC39,", ",AD39," Lens ",AF39))),"Please check options",CONCATENATE(AA39,", ",AB39,", ",AC39,", ",AD39," Lens, ",AF39)) -> Please check options | AD46: =AA7 -> 0 | AF46: =IF(AD46=0,"",(IF(AJ39="Please check options","",AJ39))) -> 
AA47: =IF(ISNUMBER(SEARCH("Please select from list",CONCATENATE(AA40,", ",AB40,", ",AC40,", ",AD40," Lens ",AF40))),"Please check options",CONCATENATE(AA40,", ",AB40,", ",AC40,", ",AD40," Lens, ",AF40)) -> Please check options | AD47: =AC7 -> 0 | AF47: =IF(AD47=0,"",(IF(AJ40="Please check options","",AJ40))) -> 
AA48: Please check options | AD48: =AD7 -> 0 | AF48: =IF(AD48=0,"",(IF(AJ41="Please check options","",AJ41))) -> 
AA49: =IF(ISNUMBER(SEARCH("Please select from list",CONCATENATE(AA42,", ",AB42,", ",AC42,", ",AD42," Lens ",AF42))),"Please check options",CONCATENATE(AA42,", ",AB42,", ",AC42,", ",AD42," Lens, ",AF42)) -> Please check options | AD49: =AF7 -> 0 | AF49: =IF(AD49=0,"",(IF(AJ42="Please check options","",AJ42))) -> 
AA50: Please check options | AD50: =AG7 -> 0 | AF50: =IF(AD50=0,"",(IF(AJ43="Please check options","",AJ43))) -> 
AA51: =IF(LEFT(AC10,LEN(AC10)-11)="Please ch","Please check options",LEFT(AC10,LEN(AC10)-11)) -> Please check options | AD51: =IF(AA10="Please check options","0",AA10) -> 0 | AF51: =IF(AD51=0,"",(IF(RIGHT(AC10,8)=" options","",RIGHT(AC10,8)))) -> 
AA52: =IF(LEFT(AF10,LEN(AF10)-11)="Please ch","Please check options",LEFT(AF10,LEN(AF10)-11)) -> Please check options | AD52: =IF(AD10="Please check options","0",AD10) -> 0 | AF52: =IF(AD52=0,"",(IF(RIGHT(AF10,8)=" options","",RIGHT(AF10,8)))) -> 
AA53: =IF(LEFT(AI10,LEN(AI10)-11)="Please ch","Please check options",LEFT(AI10,LEN(AI10)-11)) -> Please check options | AD53: =IF(AG10="Please check options","0",AG10) -> 0 | AF53: =IF(AD53=0,"",(IF(RIGHT(AI10,8)=" options","",RIGHT(AI10,8)))) -> 

Sheet Driver Starter Lead Info (hidden)
C2: DRIVER AND STARTER LEAD INFORMATION
C3: 24v Transformer | D3: LINELIGHT Stable white | E3: LINELIGHT Stable white (EB) | F3: LINELIGHT Balanced white | G3: Number of Starter Leads per Driver
D4: Meterage Capacity (m) | E4: Meterage Capacity (m) | F4: Meterage Capacity (m) | G4: LINELIGHT 1807a/1m | H4: LINELIGHT 1807a/DW/1m
C5: EVG
C6: LINELIGHT 1992A/70W EVG (21100296) | D6: 4 | E6: 1 | G6: 1
C7: LINELIGHT 1992A/175W EVG (21100297) | D7: 11 | E7: 4 | G7: 1
C8: LINELIGHT 1992A/320W EVG (21100298) | D8: 18 | E8: 6 | G8: 2
C10: LDO
C11: LINELIGHT 1992A/70W LDO (21100299) | D11: 4 | E11: 1 | G11: 1
C12: LINELIGHT 1992A/175W LDO (21100300) | D12: 11 | E12: 4 | G12: 1
C13: LINELIGHT 1992A/320W LDO (21100301) | D13: 18 | E13: 6 | G13: 2
C15: DW LDO
C16: LINELIGHT 1992A/DW/70W LDO (99999999) | F16: 1.8 | H16: 1
C17: LINELIGHT 1992A/DW/175W LDO (99999999) | F17: 4 | H17: 1
C18: LINELIGHT 1992A/DW/350W LDO (99999999) | F18: 8 | H18: 2
